﻿Payment Date,Invoice Reference,Revised Net,Irrecoverable VAT,Vendor,Expense Area Description,Expense Type,Expense Type Description,Revenue / Capital
03/10/2022,650727800000000,653.55,,Yorkshire Water,Corporate Management and Support,59164,Equipment,Capital
03/10/2022,17136203,795.21,,Corona Energy,HUNSLET,25001,Energy-Gas,Revenue
03/10/2022,17136220,659.13,,Corona Energy,RAWDON,25001,Energy-Gas,Revenue
03/10/2022,1235928,622.41,,Scottish Water Business Stream York,WAKEFIELD,26500,Water - Metered,Revenue
03/10/2022,1586230-01,683.33,,Crossroads Truck & Bus Ltd,FLEET MAINTENANCE,30001,Dir Cost-Spare Parts,Revenue
03/10/2022,17136252,607.77,,Corona Energy,KEIGHLEY,25001,Energy-Gas,Revenue
03/10/2022,650727790000007,691.63,,Yorkshire Water,Corporate Management and Support,59164,Equipment,Capital
03/10/2022,650727810000009,691.63,,Yorkshire Water,Corporate Management and Support,59164,Equipment,Capital
03/10/2022,1586229-01,683.83,,Crossroads Truck & Bus Ltd,FLEET MAINTENANCE,30001,Dir Cost-Spare Parts,Revenue
03/10/2022,1586241-01,7350,,Crossroads Truck & Bus Ltd,FLEET MAINTENANCE,30001,Dir Cost-Spare Parts,Revenue
03/10/2022,216954883,1040.63,,FUCHS LUBRICANTS (UK) LTD,FLEET MAINTENANCE,30102,Dir Cost-Oil & Lubes,Revenue
03/10/2022,SINV080208,3522.44,,Woodway Engineering Ltd,FLEET MANAGEMENT,34002,Vhcle Leas Misc Exp,Revenue
03/10/2022,INV-1606,556,,Scandiworkwear,OPERATIONS EQUIPMENT,41500,Clothing,Revenue
03/10/2022,INV-0604,2200,,K Lamb Associates Ltd,TRAINING DELIVERY,19223,Operational Training,Revenue
03/10/2022,INV-2493,2676.97,,Robert Whetham Associates,PROPERTY,20002,Contract Management,Revenue
03/10/2022,60636,21476.98,,WT Partnership,Corporate Management and Support,59058,Fee-External,Capital
03/10/2022,161560,2434,,Business Image,SUPPLIES SECTION,41500,Clothing,Revenue
03/10/2022,900974236,975.01,,Portakabin Limited,TODMORDEN,21014,General Rep & Maint,Revenue
03/10/2022,INV-0642,3000,,K Lamb Associates Ltd,TRAINING DELIVERY,19223,Operational Training,Revenue
04/10/2022,216955252,1123.36,,FUCHS LUBRICANTS (UK) LTD,FLEET MAINTENANCE,30102,Dir Cost-Oil & Lubes,Revenue
04/10/2022,INV146153,534.41,,Bells Domestics,HALIFAX,21014,General Rep & Maint,Revenue
04/10/2022,033542,618.5,,BCS Electrics Ltd,FSHQ Build Project,21013,Electrical Reps (Fr),Revenue
04/10/2022,524580,46095.46,,Churchill Contract Services Limited,PROPERTY,28502,Contract Cleaning,Revenue
05/10/2022,SEPTEMBER2022IMP,500,,Wolverson Fitness,Wellbeing,40035,Supplies & Services,Revenue
05/10/2022,16057,3310,,Rosenbauer UK PLC,OPERATIONS EQUIPMENT,40005,Operational Equ Pch,Revenue
05/10/2022,16059,1292,,Rosenbauer UK PLC,SUPPLIES SECTION,41500,Clothing,Revenue
05/10/2022,16105,644.67,,Rosenbauer UK PLC,OPERATIONS EQUIPMENT,40005,Operational Equ Pch,Revenue
05/10/2022,I1069,5616,,BESA Publications Ltd,PROPERTY,42511,Consultancy Fees,Revenue
05/10/2022,06/2229,1955,,First Products (Sussex) Limited,SUPPLIES SECTION,41500,Clothing,Revenue
05/10/2022,6457,7125,,The Outreach Organisation Ltd,TRAINING DELIVERY,19223,Operational Training,Revenue
05/10/2022,11433,578.7,,Computaform(UK)Ltd T/A LecoComputer,SUPPLIES SECTION,43106,ICT Consumables,Revenue
05/10/2022,1181350,13320,,Fireangel Safety Technology Ltd,Corporate Management and Support,59164,Equipment,Capital
05/10/2022,INV-0102,1700.73,,Stella Training Limited,TRAINING DELIVERY,19238,Ops Res Tng,Revenue
05/10/2022,INV-1998049,4000.32,,OUTCO Limited,PROPERTY,24000,Grounds Maintenance,Revenue
05/10/2022,SI-19206-2022,1459,,Bauer Kompressoren UK Ltd,OPERATIONS EQUIPMENT,40005,Operational Equ Pch,Revenue
05/10/2022,97172,930,,Standby RSG UK Ltd,Corporate Management and Support,59165,Vehicles & Plant,Capital
05/10/2022,5336,7920.74,,Altus Safety,PROPERTY,20000,Ann Contract/Service,Revenue
06/10/2022,11023866,-44206.44,,Maintel Europe Ltd,Information Technlgy,43103,ICT Maintenance & Support,Revenue
06/10/2022,12654687,44206.44,,Maintel Europe Ltd,Information Technlgy,43103,ICT Maintenance & Support,Revenue
06/10/2022,7701856,5533.2,,Certas Energy UK Ltd t/a Bayford Oi,STANNINGLEY,30200,Vehicle Fuel,Revenue
06/10/2022,7656100,4299.37,,Certas Energy UK Ltd t/a Bayford Oi,MOORTOWN,30200,Vehicle Fuel,Revenue
06/10/2022,YFSI4040330,12057,,Police And Crime Commissioner WY,LRF - Pilot,44500,Grants,Revenue
06/10/2022,112312511,1310.1,,M I Supplies Ltd,SUPPLIES SECTION,41500,Clothing,Revenue
06/10/2022,9983260365,577.5,,Mitchell Powersystems,Service Delivery Centre,20000,Ann Contract/Service,Revenue
06/10/2022,9983260366,544.5,,Mitchell Powersystems,PROPERTY,20000,Ann Contract/Service,Revenue
07/10/2022,EXI1978871,462.87,43.04,Lex Autolease Ltd,FLEET MANAGEMENT,34004,Vehicle Leasing,Revenue
07/10/2022,IN04549947,1325.22,,Npower Ltd,WAKEFIELD,25000,Energy-Electric,Revenue
07/10/2022,272623,614.95,,Arinsdale Ltd,FLEET MAINTENANCE,30001,Dir Cost-Spare Parts,Revenue
07/10/2022,01083191,532.27,,H-Squared Electronics Ltd,SUPPLIES SECTION,40005,Operational Equ Pch,Revenue
07/10/2022,6864618,758.25,,Michael Page International Recruitm,Corporate Communications,17000,Hired Staff,Revenue
07/10/2022,6864619,1213.2,,Michael Page International Recruitm,Corporate Communications,17000,Hired Staff,Revenue
07/10/2022,6864620,977.3,,Michael Page International Recruitm,Corporate Communications,17000,Hired Staff,Revenue
07/10/2022,6864621,1145.8,,Michael Page International Recruitm,Corporate Communications,17000,Hired Staff,Revenue
07/10/2022,6864622,876.2,,Michael Page International Recruitm,Corporate Communications,17000,Hired Staff,Revenue
07/10/2022,6864623,994.15,,Michael Page International Recruitm,Corporate Communications,17000,Hired Staff,Revenue
07/10/2022,6864624,1230.05,,Michael Page International Recruitm,Corporate Communications,17000,Hired Staff,Revenue
07/10/2022,6405,975,,Aspect Building Solutions Limited,FAIRWEATHER GREEN,21014,General Rep & Maint,Revenue
07/10/2022,110050623,1719.02,,M I Supplies Ltd,SUPPLIES SECTION,41500,Clothing,Revenue
07/10/2022,16-2804,900,,Green Elephant Co-operative Ltd,TRAINING DELIVERY,19223,Operational Training,Revenue
07/10/2022,033571,871.75,,BCS Electrics Ltd,Cleckheaton,21013,Electrical Reps (Fr),Revenue
07/10/2022,INV-274363-K7C4,4062,,The Institution of Fire Engineers,TRAINING DELIVERY,19203,Organisational Dev Training,Revenue
07/10/2022,85079,748,,Delta Fire Ltd,TRAINING DELIVERY,19243,Tech Svcs Tng,Revenue
07/10/2022,ARLSI06624,4260.88,,Airmax Remote,Information Technlgy,43103,ICT Maintenance & Support,Revenue
07/10/2022,10769,1390,,Ioda Limited,TRAINING DELIVERY,19235,Emp Svc Tng,Revenue
10/10/2022,944482733,757,,Arco Group,FLEET MAINTENANCE,30002,Consumables-Veh Rep,Revenue
10/10/2022,SINV080303,717.74,,Woodway Engineering Ltd,FLEET MAINTENANCE,30001,Dir Cost-Spare Parts,Revenue
10/10/2022,23-R1387,2573.35,,Weber Rescue Uk Ltd,OPERATIONS EQUIPMENT,40005,Operational Equ Pch,Revenue
10/10/2022,0000047389,2279.7,,Supply Plus,FLEET MAINTENANCE,30001,Dir Cost-Spare Parts,Revenue
10/10/2022,364322,1805.63,,Powertrain Products Ltd,FLEET MAINTENANCE,30001,Dir Cost-Spare Parts,Revenue
10/10/2022,82963,944.8,,Interflon (Uk) Ltd,FLEET MAINTENANCE,30002,Consumables-Veh Rep,Revenue
10/10/2022,22223032,2532.32,,Ecobat Battery UK Ltd,West Yorkshire Fire and Rescue Service,30001,Dir Cost-Spare Parts,Revenue
10/10/2022,1905343,1137.7,,Ecco Safety Group (UK) Ltd,FLEET MANAGEMENT,34002,Vhcle Leas Misc Exp,Revenue
10/10/2022,E2015970235,9411.13,,Allstar Business Solutions Ltd,GARFORTH,30200,Vehicle Fuel,Revenue
10/10/2022,0000047369,25311.62,,Supply Plus,OPERATIONS EQUIPMENT,40005,Operational Equ Pch,Revenue
10/10/2022,SI-7567,900,,Full Control Networks Dist Ltd,FSHQ Build Project,21013,Electrical Reps (Fr),Revenue
10/10/2022,MJA02245,700,,MJA Consultants,Ossett,21013,Electrical Reps (Fr),Revenue
10/10/2022,MJA02246,1050,,MJA Consultants,PONTEFRACT,21013,Electrical Reps (Fr),Revenue
10/10/2022,MJA02247,1350,,MJA Consultants,NORMANTON,21013,Electrical Reps (Fr),Revenue
10/10/2022,UK10/092022/2336,1604,,Vodafone Business Solutions,Emergency Serv. Comms. Programme - WY,43042,Direct Network Service Provider,Revenue
10/10/2022,64096,540,,Enserve Corporation Ltd,PROPERTY,20000,Ann Contract/Service,Revenue
11/10/2022,IN28255,1545,,Gremedia Screenprint Ltd,WATER OFFICE,40027,Hydrants Repair,Revenue
11/10/2022,OP/I944154,6836.2,,Phoenix Software Ltd,Information Technlgy,43103,ICT Maintenance & Support,Revenue
11/10/2022,AFO1184984,4594.66,,Veolia (Dewsbury),SUPPLIES SECTION,28506,Refuse Collect/Disp,Revenue
11/10/2022,10798,695,,Ioda Limited,TRAINING DELIVERY,19235,Emp Svc Tng,Revenue
11/10/2022,6481,1385,,The Outreach Organisation Ltd,TRAINING DELIVERY,19223,Operational Training,Revenue
11/10/2022,Q485523,747,,NLA Media Access,Corporate Communications,40221,Publty/Promtn/Media,Revenue
11/10/2022,69386939,546.56,,Personnel Hygiene Services Limited,PROPERTY,20000,Ann Contract/Service,Revenue
11/10/2022,65107,3900,,Safequip Ltd,OPERATIONS EQUIPMENT,40005,Operational Equ Pch,Revenue
11/10/2022,SIN022505,1630,,Dearnleys,Corporate Management and Support,59052,Cont-External,Capital
11/10/2022,09/22,3488,,Dr Neil A L Smith (Occ. Med. Svcs),Health & Safety,18301,Specialists Fees,Revenue
11/10/2022,263338,510.72,,Environment Agency (Head Office),Comah,43500,Subsistence Allowncs,Revenue
12/10/2022,113454,977.5,,Barkston Plastics Engineering Ltd,FLEET MANAGEMENT,30004,Rep-Ext Contractors,Revenue
12/10/2022,2090169-01,775.91,,Crossroads Truck & Bus Ltd,FLEET MAINTENANCE,30005,Workshop Equipment,Revenue
12/10/2022,2089093-01,771.73,,Crossroads Truck & Bus Ltd,FLEET MANAGEMENT,30004,Rep-Ext Contractors,Revenue
12/10/2022,7652469,4204.75,,Certas Energy UK Ltd t/a Bayford Oi,South Kirkby,30200,Vehicle Fuel,Revenue
12/10/2022,65073839000000X,1488.36,,Yorkshire Water,Corporate Management and Support,59164,Equipment,Capital
12/10/2022,650738380000001,1488.36,,Yorkshire Water,Corporate Management and Support,59164,Equipment,Capital
12/10/2022,650733940000000,710.78,,Yorkshire Water,Corporate Management and Support,59164,Equipment,Capital
12/10/2022,650733930000002,1553.36,,Yorkshire Water,Corporate Management and Support,59164,Equipment,Capital
12/10/2022,650733920000004,906.12,,Yorkshire Water,Corporate Management and Support,59164,Equipment,Capital
12/10/2022,650730650000008,645.78,,Yorkshire Water,Corporate Management and Support,59164,Equipment,Capital
12/10/2022,65073064000000X,1488.36,,Yorkshire Water,Corporate Management and Support,59164,Equipment,Capital
12/10/2022,650738400000003,1488.36,,Yorkshire Water,Corporate Management and Support,59164,Equipment,Capital
12/10/2022,650738410000001,1488.36,,Yorkshire Water,Corporate Management and Support,59164,Equipment,Capital
12/10/2022,90074,2436.57,,Ask the Office Ltd,SUPPLIES SECTION,41900,Laundry,Revenue
12/10/2022,SI-7568,2520,,Full Control Networks Dist Ltd,FSHQ Build Project,21013,Electrical Reps (Fr),Revenue
12/10/2022,55056,2265,,Physio Med Ltd,Health & Safety,18301,Specialists Fees,Revenue
12/10/2022,110128,3600,,Lavat Consulting Ltd,FINANCE SECTION,42511,Consultancy Fees,Revenue
12/10/2022,30,1340.66,,Clarks Technology Solutions Limited,FLEET MANAGEMENT,34002,Vhcle Leas Misc Exp,Revenue
12/10/2022,2614678,63482.78,,Home Office,OPERATIONS,43026,Radio Licensing,Revenue
12/10/2022,12654967,44200.44,,Maintel Europe Ltd,Information Technlgy,43103,ICT Maintenance & Support,Revenue
12/10/2022,152337,2272.85,,Southcombe Brothers Ltd,SUPPLIES SECTION,41500,Clothing,Revenue
12/10/2022,841796,1011.67,,Wavenet Limited,Information Technlgy,43015,Landlines Call Charges,Revenue
12/10/2022,16076,1665.5,,Rosenbauer UK PLC,OPERATIONS EQUIPMENT,40005,Operational Equ Pch,Revenue
12/10/2022,5261189252,865.44,,Honeywell,OPERATIONS EQUIPMENT,40005,Operational Equ Pch,Revenue
12/10/2022,15338,2581.63,,Goliath Footwear Ltd,SUPPLIES SECTION,41500,Clothing,Revenue
12/10/2022,441851-032MA,4166.61,,Virgin Media Payments Ltd,Information Technlgy,43017,Corporate Mobile Phone,Revenue
12/10/2022,1138772,5476.24,,Ballyclare Limited,Corporate Management and Support,59164,Equipment,Capital
13/10/2022,SIN035976,3900,,Peak District National Park Authori,TRAINING DELIVERY,19238,Ops Res Tng,Revenue
13/10/2022,79051,909.92,,Flogas Medical Gases,OPERATIONS EQUIPMENT,40005,Operational Equ Pch,Revenue
13/10/2022,41900,4200,,Hall Lane Recyclers Ltd,FAIRWEATHER GREEN,40025,Scrap Cars Purch,Revenue
13/10/2022,OP/I049088,105816,,Angloco Ltd,Corporate Management and Support,59165,Vehicles & Plant,Capital
13/10/2022,OP/I049089,106316,,Angloco Ltd,Corporate Management and Support,59165,Vehicles & Plant,Capital
13/10/2022,38003411,570925.38,,Willmott Dixon Construction Limited,Corporate Management and Support,59052,Cont-External,Capital
14/10/2022,7684879,5718,,Certas Energy UK Ltd t/a Bayford Oi,LEEDS,30200,Vehicle Fuel,Revenue
14/10/2022,3162,6102.41,,Corporate Travel Mgmt (North) Ltd,FINANCE SECTION,43500,Subsistence Allowncs,Revenue
14/10/2022,RSLSI22005699,2970.2,,Radiocoms System Ltd (Lon),OPERATIONS EQUIPMENT,40005,Operational Equ Pch,Revenue
14/10/2022,7402857385,847.44,,Dell Corporation,Corporate Management and Support,59166,Computer Costs,Capital
14/10/2022,INV-8635,2550,,Red One Limited,TRAINING DELIVERY,19223,Operational Training,Revenue
14/10/2022,11437,19072.16,,Nviron Limited,Corporate Management and Support,59166,Computer Costs,Capital
14/10/2022,SIN021056,1920,,1Spatial Group Ltd,Information Technlgy,43103,ICT Maintenance & Support,Revenue
14/10/2022,9985,3137.5,,Nviron Limited,Corporate Management and Support,59166,Computer Costs,Capital
17/10/2022,504558,875.02,,Bradford Bolt & Nut Co Ltd,FLEET MAINTENANCE,30005,Workshop Equipment,Revenue
17/10/2022,65074098000000X,645.78,,Yorkshire Water,Corporate Management and Support,59164,Equipment,Capital
17/10/2022,650740970000001,645.78,,Yorkshire Water,Corporate Management and Support,59164,Equipment,Capital
17/10/2022,650740960000003,1488.36,,Yorkshire Water,Corporate Management and Support,59164,Equipment,Capital
17/10/2022,650740950000005,1064.41,,Yorkshire Water,Corporate Management and Support,59164,Equipment,Capital
17/10/2022,650738510000009,1070.37,,Yorkshire Water,Corporate Management and Support,59164,Equipment,Capital
17/10/2022,650738500000000,691.63,,Yorkshire Water,Corporate Management and Support,59164,Equipment,Capital
17/10/2022,650738490000007,691.63,,Yorkshire Water,Corporate Management and Support,59164,Equipment,Capital
17/10/2022,650738480000009,691.63,,Yorkshire Water,Corporate Management and Support,59164,Equipment,Capital
17/10/2022,650738470000000,691.63,,Yorkshire Water,Corporate Management and Support,59164,Equipment,Capital
17/10/2022,650738460000002,1659.03,,Yorkshire Water,Corporate Management and Support,59164,Equipment,Capital
17/10/2022,650738440000006,710.78,,Yorkshire Water,Corporate Management and Support,59164,Equipment,Capital
17/10/2022,650738430000008,1553.36,,Yorkshire Water,Corporate Management and Support,59164,Equipment,Capital
17/10/2022,7791008,4520.11,,Certas Energy UK Ltd t/a Bayford Oi,HUNSLET,30200,Vehicle Fuel,Revenue
17/10/2022,650742100000009,645.78,,Yorkshire Water,Corporate Management and Support,59164,Equipment,Capital
17/10/2022,650628040000007,1488.36,,Yorkshire Water,Corporate Management and Support,59164,Equipment,Capital
17/10/2022,1000931-2022-08,53609.04,,Scottish Water Business Stream York,LEEDS,26500,Water - Metered,Revenue
17/10/2022,9552,2020.29,,Wharfedale Construction Ltd,Skelmanthorpe,21017,Minor Property Works,Revenue
17/10/2022,033607,2130.07,,BCS Electrics Ltd,FSHQ Build Project,21014,General Rep & Maint,Revenue
17/10/2022,13102022A2,158391.45,,Nviron Limited,Corporate Management and Support,59166,Computer Costs,Capital
17/10/2022,131022A1,37096.45,,Nviron Limited,Corporate Management and Support,59166,Computer Costs,Capital
17/10/2022,033614,811.65,,BCS Electrics Ltd,WAKEFIELD,21013,Electrical Reps (Fr),Revenue
17/10/2022,033616,659.24,,BCS Electrics Ltd,Shipley,21013,Electrical Reps (Fr),Revenue
17/10/2022,033617,698.17,,BCS Electrics Ltd,ROTHWELL,21013,Electrical Reps (Fr),Revenue
17/10/2022,033619,1114.54,,BCS Electrics Ltd,MORLEY,21013,Electrical Reps (Fr),Revenue
17/10/2022,033620,815.91,,BCS Electrics Ltd,LEEDS,21013,Electrical Reps (Fr),Revenue
17/10/2022,033621,811.65,,BCS Electrics Ltd,Killingbeck,21013,Electrical Reps (Fr),Revenue
17/10/2022,033622,850.17,,BCS Electrics Ltd,KEIGHLEY,21013,Electrical Reps (Fr),Revenue
17/10/2022,033627,502.07,,BCS Electrics Ltd,WAKEFIELD,21013,Electrical Reps (Fr),Revenue
17/10/2022,033628,769.45,,BCS Electrics Ltd,WAKEFIELD,21013,Electrical Reps (Fr),Revenue
17/10/2022,033630,1024.34,,BCS Electrics Ltd,WAKEFIELD,21013,Electrical Reps (Fr),Revenue
17/10/2022,INV-0648,1475,,K Lamb Associates Ltd,TRAINING DELIVERY,19223,Operational Training,Revenue
18/10/2022,HDIN328008,539.91,,Wood Auto Supplies Limited,West Yorkshire Fire and Rescue Service,30001,Dir Cost-Spare Parts,Revenue
18/10/2022,1001154-2022-09,3457.25,,Scottish Water Business Stream York,HUNSLET,26500,Water - Metered,Revenue
18/10/2022,10818,695,,Ioda Limited,TRAINING DELIVERY,19235,Emp Svc Tng,Revenue
18/10/2022,6500,1425,,The Outreach Organisation Ltd,TRAINING DELIVERY,19223,Operational Training,Revenue
18/10/2022,6512,885,,The Outreach Organisation Ltd,TRAINING DELIVERY,19223,Operational Training,Revenue
18/10/2022,AFO1186779,3866.1,,Veolia (Dewsbury),SUPPLIES SECTION,28506,Refuse Collect/Disp,Revenue
18/10/2022,83483,880,,Thriiver Limited (WY),CORPORATE DIVERSITY,40039,Access to Work Purchase,Revenue
18/10/2022,INV-10974,1420,,Inspectas Compliance Ltd,Skelmanthorpe,21017,Minor Property Works,Revenue
18/10/2022,INV-10994,1590,,Inspectas Compliance Ltd,SILSDEN,21017,Minor Property Works,Revenue
18/10/2022,IN22119918,990,,Calderdale Met Borough Council,EMPLOYMENT SERVICES,18100,Staff Advertising,Revenue
18/10/2022,INV00069606,546,,London Hire Limited,FLEET MANAGEMENT,32002,Vehicle & Plant Hire,Revenue
19/10/2022,IN04930461,2340.24,,Npower Ltd,STANNINGLEY,25000,Energy-Electric,Revenue
19/10/2022,IN04930460,820.27,,Npower Ltd,COOKRIDGE,25000,Energy-Electric,Revenue
19/10/2022,IN04930459,1429.37,,Npower Ltd,Cleckheaton,25000,Energy-Electric,Revenue
19/10/2022,IN04930456,889.98,,Npower Ltd,RAWDON,25000,Energy-Electric,Revenue
19/10/2022,IN04930455,1582.28,,Npower Ltd,HUNSLET,25000,Energy-Electric,Revenue
19/10/2022,IN04930451,715.89,,Npower Ltd,Slaithwaite,25000,Energy-Electric,Revenue
19/10/2022,IN04930446,891.4,,Npower Ltd,ODSAL,25000,Energy-Electric,Revenue
19/10/2022,IN04930445,607.85,,Npower Ltd,MORLEY,25000,Energy-Electric,Revenue
19/10/2022,IN04930443,902.21,,Npower Ltd,MOORTOWN,25000,Energy-Electric,Revenue
19/10/2022,IN04930441,1202.43,,Npower Ltd,KEIGHLEY,25000,Energy-Electric,Revenue
19/10/2022,IN04930440,1267.78,,Npower Ltd,ILLINGWORTH,25000,Energy-Electric,Revenue
19/10/2022,IN04930435,1310.9,,Npower Ltd,FAIRWEATHER GREEN,25000,Energy-Electric,Revenue
19/10/2022,IN04930434,532.59,,Npower Ltd,FEATHERSTONE,25000,Energy-Electric,Revenue
19/10/2022,7811631,4520.11,,Certas Energy UK Ltd t/a Bayford Oi,HUDDERSFIELD,30200,Vehicle Fuel,Revenue
19/10/2022,IN04930465,875.4,,Npower Ltd,Ossett,25000,Energy-Electric,Revenue
19/10/2022,INV-0605,4500,,K Lamb Associates Ltd,TRAINING DELIVERY,19223,Operational Training,Revenue
19/10/2022,BSIN00117687,507.65,,Trevor Iles Ltd,SUPPLIES SECTION,40508,Cat Gen Equ Purch,Revenue
19/10/2022,INV/11108,2012.52,,Industrial Door Solutions Limited,MORLEY,21006,Appliance Bay Doors,Revenue
19/10/2022,22013408,5590,,Bureau Veritas Uk Ltd,TRAINING DELIVERY,19238,Ops Res Tng,Revenue
19/10/2022,SI002222,3614.08,,Hunter Apparel Solutions Ltd,SUPPLIES SECTION,41500,Clothing,Revenue
19/10/2022,9060,18262.55,,Fire Hosetech,OPERATIONS EQUIPMENT,40005,Operational Equ Pch,Revenue
19/10/2022,9061,3513.6,,Fire Hosetech,OPERATIONS EQUIPMENT,40005,Operational Equ Pch,Revenue
19/10/2022,16455,1630,,MPL (Yorkshire) Ltd T/A MPL,OPERATIONS EQUIPMENT,40005,Operational Equ Pch,Revenue
20/10/2022,CR04563709,-1156.69,,Npower Ltd,WETHERBY,25000,Energy-Electric,Revenue
20/10/2022,IN04563709,1156.69,,Npower Ltd,WETHERBY,25000,Energy-Electric,Revenue
20/10/2022,IN04758070,13732.08,,Npower Ltd,PROPERTY,25000,Energy-Electric,Revenue
20/10/2022,TK138112,2155.2,,Thomas Kneale & Co Ltd,Fire Safety Prev,40037,Safety Equipment,Revenue
20/10/2022,249209,5283.99,,Maintel Europe Ltd,Information Technlgy,43015,Landlines Call Charges,Revenue
20/10/2022,900971219,918.65,,Portakabin Limited,FSHQ Build Project,21014,General Rep & Maint,Revenue
20/10/2022,OP/I048660,30000,,Angloco Ltd,Corporate Management and Support,59164,Equipment,Capital
20/10/2022,OP/I048661,5913.6,,Angloco Ltd,Corporate Management and Support,59164,Equipment,Capital
20/10/2022,OP/I048894,6590,,Angloco Ltd,OPERATIONS EQUIPMENT,40005,Operational Equ Pch,Revenue
20/10/2022,INV-2223176,1160,,Pepperdog Design Ltd,Corporate Communications,40221,Publty/Promtn/Media,Revenue
21/10/2022,113071721,1275,,M I Supplies Ltd,West Yorkshire Fire and Rescue Service,41500,Clothing,Revenue
21/10/2022,89075250,1935,,Npower Yorkshire Ltd,LEEDS,20000,Ann Contract/Service,Revenue
21/10/2022,25572270AC010221,19923.06,,British Telecom,Information Technlgy,43103,ICT Maintenance & Support,Revenue
21/10/2022,033653,1393.85,,BCS Electrics Ltd,FLEET MAINTENANCE,21013,Electrical Reps (Fr),Revenue
21/10/2022,033666,825.12,,BCS Electrics Ltd,PROPERTY,21013,Electrical Reps (Fr),Revenue
24/10/2022,6714307,620,,ESPO- Eastern Shires Purchasing Org,SUPPLIES SECTION,40008,White Goods Purch,Revenue
24/10/2022,033626,968.81,,BCS Electrics Ltd,WAKEFIELD,21013,Electrical Reps (Fr),Revenue
24/10/2022,16175,1883,,Sigma Security Devices Ltd,OPERATIONS EQUIPMENT,40005,Operational Equ Pch,Revenue
24/10/2022,185387,10401.34,,Respirex International Ltd,OPERATIONS EQUIPMENT,40005,Operational Equ Pch,Revenue
24/10/2022,91871843,10800,,Serco Ltd,TRAINING DELIVERY,19223,Operational Training,Revenue
24/10/2022,64169,1875,,Enserve Corporation Ltd,ILLINGWORTH,21014,General Rep & Maint,Revenue
24/10/2022,737954,782.88,,Lyon Equipment Ltd,OPERATIONS EQUIPMENT,40005,Operational Equ Pch,Revenue
24/10/2022,CI6524A,504,,Peoplesafe Ltd,Information Technlgy,43024,Pagers,Revenue
24/10/2022,0940000048-117A,3566.18,,Airwave Solutions Ltd,Information Technlgy,43026,Radio Licensing,Revenue
24/10/2022,EWGL-EB-844,16000,,Engaging Works Group Ltd (t/a WorkL,EMPLOYEE RESOURCING,19201,Training Fees,Revenue
24/10/2022,INV-1996900,4000.32,,OUTCO Limited,PROPERTY,24000,Grounds Maintenance,Revenue
25/10/2022,7569,899.85,,CM Healthcare,SUPPLIES SECTION,41500,Clothing,Revenue
25/10/2022,3208712,1678.07,,Bristol Care,OPERATIONS EQUIPMENT,40005,Operational Equ Pch,Revenue
25/10/2022,489464,1051.6,,OfficeXpress Europe Limited,SUPPLIES SECTION,43106,ICT Consumables,Revenue
25/10/2022,14018,2995,,In-Tend Limited,Procurement,44600,Subscriptions,Revenue
25/10/2022,MJA02258,4015,,MJA Consultants,PROPERTY,20000,Ann Contract/Service,Revenue
25/10/2022,MJA02259,9905.5,,MJA Consultants,PROPERTY,20000,Ann Contract/Service,Revenue
25/10/2022,033676,72764.79,,BCS Electrics Ltd,PROPERTY,20000,Ann Contract/Service,Revenue
25/10/2022,IN44309,5349.39,,Elis UK Ltd,SUPPLIES SECTION,41900,Laundry,Revenue
25/10/2022,IN68964,5379.34,,Elis UK Ltd,SUPPLIES SECTION,41900,Laundry,Revenue
25/10/2022,0000317351,2555.52,,SYNLAB Laboratory Services Ltd,Health & Safety,18301,Specialists Fees,Revenue
25/10/2022,SPS07224JD.D(722,1100,,Socrates Psychological Services,Health & Safety,18301,Specialists Fees,Revenue
25/10/2022,12722,3975.21,,T Kirk Forestry,National Resilience,45123,Chainsaw Operator,Revenue
25/10/2022,SPS07220MC.D(722,660,,Socrates Psychological Services,Health & Safety,18301,Specialists Fees,Revenue
25/10/2022,WYFS221215,500,,The Southwood Club Ltd,RECRUITS,40502,Food,Revenue
26/10/2022,650747990000002,999.41,,Yorkshire Water,Corporate Management and Support,59164,Equipment,Capital
26/10/2022,650747970000006,653.55,,Yorkshire Water,Corporate Management and Support,59164,Equipment,Capital
26/10/2022,650747960000008,1070.37,,Yorkshire Water,Corporate Management and Support,59164,Equipment,Capital
26/10/2022,650747940000001,645.78,,Yorkshire Water,Corporate Management and Support,59164,Equipment,Capital
26/10/2022,7829163,4628.1,,Certas Energy UK Ltd t/a Bayford Oi,BRADFORD,30200,Vehicle Fuel,Revenue
26/10/2022,IN04892848,3398.21,,Npower Ltd,HALIFAX,25000,Energy-Electric,Revenue
26/10/2022,IN04892830,598.45,,Npower Ltd,TODMORDEN,25000,Energy-Electric,Revenue
26/10/2022,IN04879289,1348.22,,Npower Ltd,WAKEFIELD,25000,Energy-Electric,Revenue
26/10/2022,IN04879288,2034.91,,Npower Ltd,LEEDS,25000,Energy-Electric,Revenue
26/10/2022,IN04879287,1802.2,,Npower Ltd,ROTHWELL,25000,Energy-Electric,Revenue
26/10/2022,IN04879286,1021.97,,Npower Ltd,NORMANTON,25000,Energy-Electric,Revenue
26/10/2022,IN04879285,1773.55,,Npower Ltd,PONTEFRACT,25000,Energy-Electric,Revenue
26/10/2022,IN04879284,3480.86,,Npower Ltd,BRADFORD,25000,Energy-Electric,Revenue
26/10/2022,IN04879283,8858.5,,Npower Ltd,Service Delivery Centre,25000,Energy-Electric,Revenue
26/10/2022,IN04879282,1508.24,,Npower Ltd,Shipley,25000,Energy-Electric,Revenue
26/10/2022,IN04879281,2241.24,,Npower Ltd,Killingbeck,25000,Energy-Electric,Revenue
26/10/2022,IN04879280,1717.89,,Npower Ltd,Dewsbury,25000,Energy-Electric,Revenue
26/10/2022,IN04879278,12478.39,,Npower Ltd,PROPERTY,25000,Energy-Electric,Revenue
26/10/2022,IN04776239,2040.63,,Npower Ltd,HUDDERSFIELD,25000,Energy-Electric,Revenue
26/10/2022,IN04776175,2957.51,,Npower Ltd,HALIFAX,25000,Energy-Electric,Revenue
26/10/2022,IN04775847,887.26,,Npower Ltd,GARFORTH,25000,Energy-Electric,Revenue
26/10/2022,650747980000004,1070.37,,Yorkshire Water,Corporate Management and Support,59164,Equipment,Capital
26/10/2022,IN04751665,634.8,,Npower Ltd,TODMORDEN,25000,Energy-Electric,Revenue
26/10/2022,IN04749899,1059.41,,Npower Ltd,BINGLEY,25000,Energy-Electric,Revenue
26/10/2022,650500540000007,710.78,,Yorkshire Water,Corporate Management and Support,59164,Equipment,Capital
26/10/2022,650457670000006,999.41,,Yorkshire Water,Corporate Management and Support,59164,Equipment,Capital
26/10/2022,65043658000000X,710.78,,Yorkshire Water,Corporate Management and Support,59164,Equipment,Capital
26/10/2022,650476180000002,1488.36,,Yorkshire Water,Corporate Management and Support,59164,Equipment,Capital
26/10/2022,0000047525,1713.33,,Supply Plus,FLEET MAINTENANCE,30001,Dir Cost-Spare Parts,Revenue
26/10/2022,EXI1996769,542.11,50.43,Lex Autolease Ltd,FLEET MANAGEMENT,34004,Vehicle Leasing,Revenue
26/10/2022,EXI1996654,462.87,43.04,Lex Autolease Ltd,FLEET MANAGEMENT,34004,Vehicle Leasing,Revenue
26/10/2022,E2016034612,10327.94,,Allstar Business Solutions Ltd,GARFORTH,30200,Vehicle Fuel,Revenue
26/10/2022,EC20781075,775,,GCI Network Solutions Limited,Information Technlgy,43018,Wan Rental,Revenue
26/10/2022,8607534353,840,,Kirklees Council,EMPLOYMENT SERVICES,18100,Staff Advertising,Revenue
26/10/2022,775766G,878.02,,Arena Group Limited,Service Delivery Centre,42201,Photocopier Charges,Revenue
27/10/2022,17183508,703.22,,Corona Energy,Service Delivery Centre,25001,Energy-Gas,Revenue
27/10/2022,17183509,650.48,,Corona Energy,STANNINGLEY,25001,Energy-Gas,Revenue
27/10/2022,17183510,1010.3,,Corona Energy,BRADFORD,25001,Energy-Gas,Revenue
27/10/2022,17183521,1967.73,,Corona Energy,PROPERTY,25001,Energy-Gas,Revenue
27/10/2022,INV-0663,1500,,K Lamb Associates Ltd,TRAINING DELIVERY,19223,Operational Training,Revenue
27/10/2022,SIN022581,801.5,,Dearnleys,Corporate Management and Support,59052,Cont-External,Capital
27/10/2022,INV-2515,2676.97,,Robert Whetham Associates,PROPERTY,20002,Contract Management,Revenue
27/10/2022,1182447,26640,,Fireangel Safety Technology Ltd,Corporate Management and Support,59164,Equipment,Capital
27/10/2022,1579,4247,,Speedings Limited,OPERATIONS EQUIPMENT,40005,Operational Equ Pch,Revenue
28/10/2022,IN04930457,1205.66,,Npower Ltd,BINGLEY,25000,Energy-Electric,Revenue
28/10/2022,IN04930454,1954.39,,Npower Ltd,HUDDERSFIELD,25000,Energy-Electric,Revenue
28/10/2022,IN04930438,737.62,,Npower Ltd,GARFORTH,25000,Energy-Electric,Revenue
28/10/2022,65315,504.09,,Safequip Ltd,OPERATIONS EQUIPMENT,40005,Operational Equ Pch,Revenue
28/10/2022,IN87020,572.73,,BAM FM Ltd (Manchester),HUDDERSFIELD,21012,Heating & Mechanical,Revenue
28/10/2022,IN87011,637.67,,BAM FM Ltd (Manchester),NORMANTON,21012,Heating & Mechanical,Revenue
28/10/2022,775698G,4322.71,,Arena Group Limited,Leeds Dist Com,42201,Photocopier Charges,Revenue
28/10/2022,SI-124,837,,Eyedeal Vision Ltd,Health & Safety,18301,Specialists Fees,Revenue
28/10/2022,826670,1410,,Fire Service College Limited,TRAINING DELIVERY,19223,Operational Training,Revenue
31/10/2022,650750290000002,1488.36,,Yorkshire Water,Corporate Management and Support,59164,Equipment,Capital
31/10/2022,835206600,774.67,,Leeds City Council,Rawdon Day Crewing,26000,Rates & Council Tax,Revenue
31/10/2022,650750680000003,1488.36,,Yorkshire Water,Corporate Management and Support,59164,Equipment,Capital
31/10/2022,P0202508,1602.55,,Pelican Engineering Co (Sales),FLEET MAINTENANCE,30001,Dir Cost-Spare Parts,Revenue
31/10/2022,68881,995,,Pennine Pneumatic Services Ltd,FLEET MAINTENANCE,30005,Workshop Equipment,Revenue
31/10/2022,6868521,1213.2,,Michael Page International Recruitm,Corporate Communications,17000,Hired Staff,Revenue
31/10/2022,6868522,1263.75,,Michael Page International Recruitm,Corporate Communications,17000,Hired Staff,Revenue
31/10/2022,11517,1237.5,,Live For Today Ltd,TRAINING DELIVERY,19239,Ops Supp Tng,Revenue
31/10/2022,3110812/463,632.5,,Mears Ltd,HUNSLET,21014,General Rep & Maint,Revenue
01/11/2022,650733960000007,691.63,,Yorkshire Water,Corporate Management and Support,59164,Equipment,Capital
01/11/2022,3667,-995,,Pennine Pneumatic Services Ltd,FLEET MAINTENANCE,30005,Workshop Equipment,Revenue
01/11/2022,INV-24266/1,1556.6,,Liverpool Power Boats Ltd,OPERATIONS EQUIPMENT,40005,Operational Equ Pch,Revenue
01/11/2022,69025,995,,Pennine Pneumatic Services Ltd,FLEET MAINTENANCE,30005,Workshop Equipment,Revenue
01/11/2022,3664,-995,,Pennine Pneumatic Services Ltd,FLEET MAINTENANCE,30005,Workshop Equipment,Revenue
01/11/2022,3665,-995,,Pennine Pneumatic Services Ltd,FLEET MAINTENANCE,30005,Workshop Equipment,Revenue
01/11/2022,69026,995,,Pennine Pneumatic Services Ltd,FLEET MAINTENANCE,30005,Workshop Equipment,Revenue
01/11/2022,3666,-995,,Pennine Pneumatic Services Ltd,FLEET MAINTENANCE,30005,Workshop Equipment,Revenue
01/11/2022,69024,995,,Pennine Pneumatic Services Ltd,FLEET MAINTENANCE,30005,Workshop Equipment,Revenue
01/11/2022,69027,995,,Pennine Pneumatic Services Ltd,FLEET MAINTENANCE,30005,Workshop Equipment,Revenue
01/11/2022,AR2022003633,1085.38,,Banner Batteries (GB) Ltd,FLEET MAINTENANCE,30001,Dir Cost-Spare Parts,Revenue
01/11/2022,P0202423,851.6,,Pelican Engineering Co (Sales),FLEET MAINTENANCE,30001,Dir Cost-Spare Parts,Revenue
01/11/2022,364459,901.54,,Powertrain Products Ltd,FLEET MAINTENANCE,30001,Dir Cost-Spare Parts,Revenue
01/11/2022,86699,513,,La Romantica Beds Ltd,BINGLEY,40100,Furniture,Revenue
01/11/2022,527336,46095.46,,Churchill Contract Services Limited,PROPERTY,28502,Contract Cleaning,Revenue
02/11/2022,IN04930463,1107.96,,Npower Ltd,Various,25000,Energy-Electric,Revenue
02/11/2022,IN04930458,1349.65,,Npower Ltd,Various,25000,Energy-Electric,Revenue
02/11/2022,10828,695,,Ioda Limited,TRAINING DELIVERY,19235,Emp Svc Tng,Revenue
02/11/2022,INV-0673,1500,,K Lamb Associates Ltd,TRAINING DELIVERY,19238,Ops Res Tng,Revenue
02/11/2022,6531,1425,,The Outreach Organisation Ltd,TRAINING DELIVERY,19223,Operational Training,Revenue
02/11/2022,YFSI4040607,2346.76,,Police And Crime Commissioner WY,Comah,43501,Conference Expenses,Revenue
02/11/2022,24291,700,,FVS Limited,PROPERTY,20000,Ann Contract/Service,Revenue
02/11/2022,221494,540,,Darcy Products Limited,TODMORDEN,21014,General Rep & Maint,Revenue
02/11/2022,221711,650,,Darcy Products Limited,FAIRWEATHER GREEN,21014,General Rep & Maint,Revenue
02/11/2022,41932,2250,,Hall Lane Recyclers Ltd,TRAINING DELIVERY,40025,Scrap Cars Purch,Revenue
02/11/2022,IN001125892,17383.45,,GTT Communications Inc,Information Technlgy,43018,Wan Rental,Revenue
02/11/2022,CR001011036,-996.48,,GTT Communications Inc,Information Technlgy,43018,Wan Rental,Revenue
02/11/2022,01287458410,721.02,,EE Ltd (Airtime),Information Technlgy,43017,Corporate Mobile Phone,Revenue
02/11/2022,01287519456,721,,EE Ltd (Airtime),Information Technlgy,43017,Corporate Mobile Phone,Revenue
02/11/2022,0940000048-119,3566.18,,Airwave Solutions Ltd,Information Technlgy,43026,Radio Licensing,Revenue
02/11/2022,IN001129340,16782.09,,GTT Communications Inc,Information Technlgy,43018,Wan Rental,Revenue
02/11/2022,UK10/102022/3736,1604,,Vodafone Business Solutions,Emergency Serv. Comms. Programme - WY,43042,Direct Network Service Provider,Revenue
02/11/2022,196361,2807.95,,Keela International Ltd,West Yorkshire Fire And Rescue Service,41500,Clothing,Revenue
03/11/2022,SINV080570,623.34,,Woodway Engineering Ltd,FLEET MAINTENANCE,30001,Dir Cost-Spare Parts,Revenue
03/11/2022,650753300000005,640.02,,Yorkshire Water,Corporate Management and Support,59164,Equipment,Capital
03/11/2022,650751800000009,1475.08,,Yorkshire Water,Corporate Management and Support,59164,Equipment,Capital
03/11/2022,650751810000007,1540.08,,Yorkshire Water,Corporate Management and Support,59164,Equipment,Capital
03/11/2022,650751820000005,1594.03,,Yorkshire Water,Corporate Management and Support,59164,Equipment,Capital
03/11/2022,65075185000000X,1488.36,,Yorkshire Water,Corporate Management and Support,59164,Equipment,Capital
03/11/2022,650751860000008,1488.36,,Yorkshire Water,Corporate Management and Support,59164,Equipment,Capital
03/11/2022,650751870000006,1070.37,,Yorkshire Water,Corporate Management and Support,59164,Equipment,Capital
03/11/2022,650751880000004,653.55,,Yorkshire Water,Corporate Management and Support,59164,Equipment,Capital
03/11/2022,650751890000002,1659.03,,Yorkshire Water,Corporate Management and Support,59164,Equipment,Capital
03/11/2022,1587902-01,675,,Crossroads Truck & Bus Ltd,FLEET MAINTENANCE,30001,Dir Cost-Spare Parts,Revenue
03/11/2022,SI032347,582.68,,Totalkare Heavy Duty Workshop Solut,FLEET MAINTENANCE,30005,Workshop Equipment,Revenue
03/11/2022,7835927,6114.45,,Certas Energy UK Ltd t/a Bayford Oi,ILLINGWORTH,30200,Vehicle Fuel,Revenue
03/11/2022,7844724,5336.8,,Certas Energy UK Ltd t/a Bayford Oi,ODSAL,30200,Vehicle Fuel,Revenue
03/11/2022,7849281,4574.4,,Certas Energy UK Ltd t/a Bayford Oi,Dewsbury,30200,Vehicle Fuel,Revenue
03/11/2022,MIN4603584,8164.92,,Lex Autolease Ltd,FLEET MANAGEMENT,34001,Vehicle Leasing,Revenue
03/11/2022,MIN4603992,8164.92,,Lex Autolease Ltd,FLEET MANAGEMENT,34001,Vehicle Leasing,Revenue
03/11/2022,54039,872.85,,Intellitec MV Ltd,PROPERTY,21013,Electrical Reps (Fr),Revenue
03/11/2022,1628,525,,Speedings Limited,OPERATIONS EQUIPMENT,40005,Operational Equ Pch,Revenue
03/11/2022,17677,1201.8,,Heavy Woollen Textile Co Ltd,West Yorkshire Fire And Rescue Service,41500,Clothing,Revenue
03/11/2022,WYFS/25082021,900,,Bradford Moor Play and Support Serv,Bradford DFSO,40010,Station Devt Equpmnt,Revenue
03/11/2022,7737,667.5,,CM Healthcare,SUPPLIES SECTION,40007,Domestic Equ Purch,Revenue
03/11/2022,962755733,8288.3,,MSA (Britain) Ltd,OPERATIONS EQUIPMENT,40005,Operational Equ Pch,Revenue
03/11/2022,9929,8762.02,,Tructyre Fleet Management Ltd,FLEET MANAGEMENT,30000,Tyre Purchase,Revenue
03/11/2022,15845,4475,,NETprotocol Ltd,Information Technlgy,43022,ICT Spares & Repairs,Revenue
03/11/2022,6751,1000,,Harry G Rhodes & Sons Ltd,FLEET MANAGEMENT,30006,Ins Claims Excess,Revenue
03/11/2022,IRIN786073,4397.04,401.34,Lex Autolease Ltd,FLEET MANAGEMENT,34001,Vehicle Leasing,Revenue
03/11/2022,IRIN786895,8385.24,797.55,Lex Autolease Ltd,FLEET MANAGEMENT,34001,Vehicle Leasing,Revenue
03/11/2022,MIN4603956,6666.6,623.96,Lex Autolease Ltd,OPERATIONS TEAM,34001,Vehicle Leasing,Revenue
04/11/2022,SI-089111,1067.62,,Powertrain Products Ltd,FLEET MAINTENANCE,30001,Dir Cost-Spare Parts,Revenue
04/11/2022,650757480000003,990.5,,Yorkshire Water,Corporate Management and Support,59164,Equipment,Capital
04/11/2022,0000018657,1593.2,,Safeguard Medical Technologies Limi,SUPPLIES SECTION,40026,First Aid Equ Pch,Revenue
04/11/2022,185597,995,,Respirex International Ltd,OPERATIONS EQUIPMENT,40005,Operational Equ Pch,Revenue
04/11/2022,ARLSI06806,4274.4,,Airmax Remote,Information Technlgy,43103,ICT Maintenance & Support,Revenue
04/11/2022,INV00070432,546,,London Hire Limited,FLEET MANAGEMENT,32002,Vehicle & Plant Hire,Revenue
04/11/2022,609,109403.64,,Jupiter Construction Ltd,Corporate Management and Support,59052,Cont-External,Capital
04/11/2022,SI-86,792,,Eyedeal Vision Ltd,Health & Safety,18301,Specialists Fees,Revenue
04/11/2022,900977194,975.01,,Portakabin Limited,TODMORDEN,21014,General Rep & Maint,Revenue
04/11/2022,1020517,12864.69,,AXA PPP Healthcare,Health & Safety,18301,Specialists Fees,Revenue
07/11/2022,2045967-06,823.97,,Crossroads Truck & Bus Ltd,FLEET MANAGEMENT,30004,Rep-Ext Contractors,Revenue
07/11/2022,MIN0229962,1478.48,,Truck Parts (North Wales),FLEET MAINTENANCE,30001,Dir Cost-Spare Parts,Revenue
07/11/2022,650451580000009,990.5,,Yorkshire Water,Corporate Management and Support,59164,Equipment,Capital
07/11/2022,65049511000000X,999.41,,Yorkshire Water,Corporate Management and Support,59164,Equipment,Capital
07/11/2022,650525050000001,690.78,,Yorkshire Water,Corporate Management and Support,59164,Equipment,Capital
07/11/2022,650758150000003,1475.08,,Yorkshire Water,Corporate Management and Support,59164,Equipment,Capital
07/11/2022,650758160000001,1488.36,,Yorkshire Water,Corporate Management and Support,59164,Equipment,Capital
07/11/2022,65075817000000X,1488.36,,Yorkshire Water,Corporate Management and Support,59164,Equipment,Capital
07/11/2022,650758180000008,971.12,,Yorkshire Water,Corporate Management and Support,59164,Equipment,Capital
07/11/2022,65075820000000X,1594.03,,Yorkshire Water,Corporate Management and Support,59164,Equipment,Capital
07/11/2022,650758210000008,1594.03,,Yorkshire Water,Corporate Management and Support,59164,Equipment,Capital
07/11/2022,650758230000004,1594.03,,Yorkshire Water,Corporate Management and Support,59164,Equipment,Capital
07/11/2022,650758220000006,1659.03,,Yorkshire Water,Corporate Management and Support,59164,Equipment,Capital
07/11/2022,650758240000002,653.55,,Yorkshire Water,Corporate Management and Support,59164,Equipment,Capital
07/11/2022,8067,1350,,Westco Trading Limited,Corporate Communications,17000,Hired Staff,Revenue
07/11/2022,IN89586,1278.29,,Elis UK Ltd,SUPPLIES SECTION,41900,Laundry,Revenue
07/11/2022,IN97853,1149.35,,Elis UK Ltd,SUPPLIES SECTION,41900,Laundry,Revenue
07/11/2022,12655177,2404.95,,Maintel Europe Ltd,Information Technlgy,43022,ICT Spares & Repairs,Revenue
07/11/2022,7402860390,80548.16,,Dell Corporation,Corporate Management and Support,59166,Computer Costs,Capital
07/11/2022,100033,1702.4,,LSi Limited,SUPPLIES SECTION,41500,Various,Revenue
07/11/2022,10/22,2790,,Dr Neil A L Smith (Occ. Med. Svcs),Health & Safety,42510,Client Med Fees/Exps,Revenue
07/11/2022,10841,695,,Ioda Limited,TRAINING DELIVERY,19235,Emp Svc Tng,Revenue
07/11/2022,INV-0606,2200,,K Lamb Associates Ltd,TRAINING DELIVERY,19223,Operational Training,Revenue
08/11/2022,650758190000006,653.55,,Yorkshire Water,Corporate Management and Support,59164,Equipment,Capital
08/11/2022,SIN022602,1602.15,,Dearnleys,Killingbeck,21017,Minor Property Works,Revenue
08/11/2022,65392,1314,,Safequip Ltd,OPERATIONS EQUIPMENT,40005,Operational Equ Pch,Revenue
08/11/2022,6873368,1246.9,,Michael Page International Recruitm,Corporate Communications,17000,Hired Staff,Revenue
08/11/2022,1270,2050,,Ian Tunnicliffe Building Consultanc,Corporate Management and Support,59058,Fee-External,Capital
08/11/2022,69432530,543.88,,Personnel Hygiene Services Limited,PROPERTY,20000,Ann Contract/Service,Revenue
08/11/2022,6873369,1112.1,,Michael Page International Recruitm,Corporate Communications,17000,Hired Staff,Revenue
08/11/2022,6873370,753.53,,Michael Page International Recruitm,Corporate Communications,17000,Hired Staff,Revenue
08/11/2022,033699,605,,BCS Electrics Ltd,STANNINGLEY,21013,Electrical Reps (Fr),Revenue
08/11/2022,033691,572.32,,BCS Electrics Ltd,PROPERTY,21013,Electrical Reps (Fr),Revenue
08/11/2022,033695,952.68,,BCS Electrics Ltd,Dewsbury,21013,Electrical Reps (Fr),Revenue
08/11/2022,033696,565.89,,BCS Electrics Ltd,Dewsbury,21013,Electrical Reps (Fr),Revenue
08/11/2022,900974237,918.65,,Portakabin Limited,FSHQ Build Project,21014,General Rep & Maint,Revenue
08/11/2022,0000318416,747.26,,SYNLAB Laboratory Services Ltd,Health & Safety,18301,Specialists Fees,Revenue
08/11/2022,59,1125.66,,Clarks Technology Solutions Limited,FLEET MANAGEMENT,34002,Vhcle Leas Misc Exp,Revenue
08/11/2022,60,1315.66,,Clarks Technology Solutions Limited,FLEET MANAGEMENT,34002,Vhcle Leas Misc Exp,Revenue
08/11/2022,650738450000004,1488.36,,Yorkshire Water,CASTLEFORD,21014,General Rep & Maint,Revenue
09/11/2022,SI-295594,1634.75,,Medtree,SUPPLIES SECTION,40006,Various,Revenue
09/11/2022,1268,7297.5,,Ian Tunnicliffe Building Consultanc,Corporate Management and Support,59058,Fee-External,Capital
09/11/2022,245947A,840.25,,Maintel Europe Ltd,Information Technlgy,43015,Landlines Call Charges,Revenue
09/11/2022,38003446,400929.6,,Willmott Dixon Construction Limited,Corporate Management and Support,59052,Cont-External,Capital
09/11/2022,120900,5378.05,,Lindum Group Limited,Corporate Management and Support,59052,Cont-External,Capital
10/11/2022,7853055,6096.15,,Certas Energy UK Ltd t/a Bayford Oi,COOKRIDGE,30200,Vehicle Fuel,Revenue
10/11/2022,276381,1155.2,,J R Industries Ltd,FLEET MAINTENANCE,30001,Dir Cost-Spare Parts,Revenue
10/11/2022,276949,616.75,,J R Industries Ltd,FLEET MAINTENANCE,30001,Dir Cost-Spare Parts,Revenue
10/11/2022,P0201570,1305.86,,Pelican Engineering Co (Sales),FLEET MAINTENANCE,30001,Dir Cost-Spare Parts,Revenue
10/11/2022,P0201651,1545.53,,Pelican Engineering Co (Sales),FLEET MAINTENANCE,30001,Dir Cost-Spare Parts,Revenue
10/11/2022,00290228,-1545.53,,Pelican Engineering Co (Sales),FLEET MAINTENANCE,30001,Dir Cost-Spare Parts,Revenue
10/11/2022,P0201664,1545.53,,Pelican Engineering Co (Sales),FLEET MAINTENANCE,30001,Dir Cost-Spare Parts,Revenue
10/11/2022,650758370000004,653.55,,Yorkshire Water,Corporate Management and Support,59164,Equipment,Capital
10/11/2022,650758380000002,1594.03,,Yorkshire Water,Corporate Management and Support,59164,Equipment,Capital
10/11/2022,650758390000000,1659.03,,Yorkshire Water,Corporate Management and Support,59164,Equipment,Capital
10/11/2022,650758400000004,653.55,,Yorkshire Water,Corporate Management and Support,59164,Equipment,Capital
10/11/2022,E2016100588,10265.33,,Allstar Business Solutions Ltd,Various,30200,Various,Revenue
10/11/2022,000555,571.02,,Lister Equipment Limited,SUPPLIES SECTION,40007,Domestic Equ Purch,Revenue
10/11/2022,110184,1000,,Lavat Consulting Ltd,FINANCE SECTION,42511,Consultancy Fees,Revenue
10/11/2022,INV/11165,719.93,,Industrial Door Solutions Limited,HUDDERSFIELD,21006,Appliance Bay Doors,Revenue
10/11/2022,4000002079,560,,Buckinghamshire Fire and Rescue Ser,FINANCE SECTION,43501,Conference Expenses,Revenue
10/11/2022,MJA02275,6615.53,,MJA Consultants,FSHQ Build Project,21013,Electrical Reps (Fr),Revenue
10/11/2022,CD20221025198,798.68,,Survitec Service & Distribution Ltd,OPERATIONS EQUIPMENT,40005,Operational Equ Pch,Revenue
10/11/2022,97798,930,,Standby RSG UK Ltd,Corporate Management and Support,59165,Vehicles & Plant,Capital
10/11/2022,79604,909.92,,Flogas Medical Gases,OPERATIONS EQUIPMENT,40005,Operational Equ Pch,Revenue
10/11/2022,IN87664,21359.2,,BAM FM Ltd (Manchester),PROPERTY,20000,Ann Contract/Service,Revenue
10/11/2022,IN87665,21359.2,,BAM FM Ltd (Manchester),PROPERTY,20000,Ann Contract/Service,Revenue
10/11/2022,55809,3394,,Physio Med Ltd,Health & Safety,18301,Specialists Fees,Revenue
10/11/2022,2031,525,,DV Optical (Openshaw Opticians),Health & Safety,18301,Specialists Fees,Revenue
10/11/2022,152488,5436.85,,Southcombe Brothers Ltd,West Yorkshire Fire And Rescue Service,41500,Clothing,Revenue
10/11/2022,130718,826.59,,WM Sugden & Sons Ltd,SUPPLIES SECTION,41500,Clothing,Revenue
10/11/2022,6476,4341.6,,Aspect Building Solutions Limited,SILSDEN,21017,Minor Property Works,Revenue
10/11/2022,6477,2206.8,,Aspect Building Solutions Limited,SILSDEN,21017,Minor Property Works,Revenue
10/11/2022,6463,1188.36,,Aspect Building Solutions Limited,Corporate Management and Support,59052,Cont-External,Capital
10/11/2022,033755,1373.19,,BCS Electrics Ltd,COOKRIDGE,21013,Electrical Reps (Fr),Revenue
10/11/2022,033752,502.07,,BCS Electrics Ltd,SILSDEN,21013,Electrical Reps (Fr),Revenue
10/11/2022,033754,565.9,,BCS Electrics Ltd,ILKLEY,21013,Electrical Reps (Fr),Revenue
10/11/2022,SI-295595,570.61,,Medtree,SUPPLIES SECTION,40026,First Aid Equ Pch,Revenue
10/11/2022,257202,2683.5,,B-Sporting Limited,SUPPLIES SECTION,41500,Clothing,Revenue
11/11/2022,650759830000004,653.55,,Yorkshire Water,Corporate Management and Support,59164,Equipment,Capital
11/11/2022,22002985,932.76,,Godiva Ltd,FLEET MAINTENANCE,30001,Dir Cost-Spare Parts,Revenue
11/11/2022,16280,1647.88,,Rosenbauer UK PLC,FLEET MANAGEMENT,30004,Rep-Ext Contractors,Revenue
11/11/2022,0000576533,560,,Masta,Health & Safety,40026,First Aid Equ Pch,Revenue
11/11/2022,1019201,540,,AXA PPP Healthcare,Health & Safety,18301,Specialists Fees,Revenue
11/11/2022,91579,1008,,Ask the Office Ltd,SUPPLIES SECTION,42100,Stationery,Revenue
11/11/2022,INV/11216,7445.49,,Industrial Door Solutions Limited,PROPERTY,20000,Ann Contract/Service,Revenue
11/11/2022,6458,1237.5,,Aspect Building Solutions Limited,FSHQ Build Project,21014,General Rep & Maint,Revenue
11/11/2022,SPS07233MC.D(723,660,,Socrates Psychological Services,Health & Safety,18301,Specialists Fees,Revenue
11/11/2022,A2300037,1000,,Vehicle Bodycare Centre Ltd,FLEET MANAGEMENT,30006,Ins Claims Excess,Revenue
11/11/2022,1012573455,809.68,,Hays Specialist Recruitment,EMPLOYMENT SERVICES,18301,Specialists Fees,Revenue
11/11/2022,1012573457,781.76,,Hays Specialist Recruitment,EMPLOYMENT SERVICES,18301,Specialists Fees,Revenue
11/11/2022,AGS1031/1,7335,,Audax Global Solutions Ltd,Corporate Management and Support,59164,Equipment,Capital
11/11/2022,15816,8462.75,,Goliath Footwear Ltd,SUPPLIES SECTION,41500,Clothing,Revenue
11/11/2022,0000576098,840,,Masta,Health & Safety,40026,First Aid Equ Pch,Revenue
14/11/2022,1001480-2022-10,6740.75,,Scottish Water Business Stream York,Various,26500,Water - Metered,Revenue
14/11/2022,INV-2517,840,,Robert Whetham Associates,PROPERTY,42613,Feasibility Study,Revenue
14/11/2022,1678,1650,,Speedings Limited,OPERATIONS EQUIPMENT,40005,Various,Revenue
14/11/2022,033758,924.65,,BCS Electrics Ltd,Slaithwaite,21013,Electrical Reps (Fr),Revenue
15/11/2022,1819171-01,-917,,Crossroads Truck & Bus Ltd,FLEET MAINTENANCE,30001,Dir Cost-Spare Parts,Revenue
15/11/2022,3414,5405.13,,Corporate Travel Mgmt (North) Ltd,FINANCE SECTION,43500,Subsistence Allowncs,Revenue
15/11/2022,16286,502.21,,Rosenbauer UK PLC,FLEET MANAGEMENT,30004,Rep-Ext Contractors,Revenue
15/11/2022,1588357-01,587.5,,Crossroads Truck & Bus Ltd,FLEET MAINTENANCE,30001,Dir Cost-Spare Parts,Revenue
15/11/2022,114495542,959.75,,M I Supplies Ltd,SUPPLIES SECTION,28501,Cleaning Consumables,Revenue
15/11/2022,INV32016,16794,,Clan Tool & Plant Hire ltd,OPERATIONS EQUIPMENT,40005,Operational Equ Pch,Revenue
15/11/2022,AFO1188448,4014.05,,Veolia (Dewsbury),SUPPLIES SECTION,28506,Refuse Collect/Disp,Revenue
15/11/2022,WYFS221215/2,2195.5,,The Southwood Club Ltd,RECRUITS,40502,Food,Revenue
15/11/2022,826842,4695,,Fire Service College Limited,TRAINING DELIVERY,19223,Operational Training,Revenue
15/11/2022,TUI263903990,6930,,University of Central Lancs,TRAINING DELIVERY,19208,Fire Safy Crses-Extl,Revenue
15/11/2022,25210,2750,,Thornley & Lumb Partnership Ltd,Corporate Management and Support,59052,Cont-External,Capital
15/11/2022,INV-0662,10750,,K Lamb Associates Ltd,TRAINING DELIVERY,19223,Operational Training,Revenue
15/11/2022,3247138/1,3809.6,,Scottish Water Business Stream Limi,PROPERTY,20000,Ann Contract/Service,Revenue
15/11/2022,3165794,1035,,CIPFA Business Limited,TRAINING DELIVERY,19236,Finance Tng,Revenue
15/11/2022,3165843,1035,,CIPFA Business Limited,TRAINING DELIVERY,19236,Finance Tng,Revenue
15/11/2022,0000318838,864.59,,SYNLAB Laboratory Services Ltd,Health & Safety,18301,Specialists Fees,Revenue
15/11/2022,UK-001764,10000,,Gallagher Bassett International Ltd,FIRE LEGAL,42587,Legal Expenses,Revenue
16/11/2022,IW800861,536,,B&M (Waste Services) Limited,SUPPLIES SECTION,28508,Premises,Revenue
16/11/2022,826920,2795,,Fire Service College Limited,TRAINING DELIVERY,19238,Ops Res Tng,Revenue
16/11/2022,AFSAWC2022-45,3980,,AFSA,TRAINING DELIVERY,19235,Emp Svc Tng,Revenue
17/11/2022,650761810000002,999.41,,Yorkshire Water,Corporate Management and Support,59164,Equipment,Capital
17/11/2022,650761830000009,898.04,,Yorkshire Water,Corporate Management and Support,59164,Equipment,Capital
17/11/2022,650761840000007,1475.08,,Yorkshire Water,Corporate Management and Support,59164,Equipment,Capital
17/11/2022,30088096,551,,JCT600 Ltd t/a JCT600 Van Centre (W,FLEET MAINTENANCE,30001,Dir Cost-Spare Parts,Revenue
17/11/2022,IN05257344,1341.86,,Npower Ltd,FAIRWEATHER GREEN,25000,Energy-Electric,Revenue
17/11/2022,IN05257346,585.28,,Npower Ltd,FEATHERSTONE,25000,Energy-Electric,Revenue
17/11/2022,IN05257347,861.46,,Npower Ltd,GARFORTH,25000,Energy-Electric,Revenue
17/11/2022,IN05257349,4123.68,,Npower Ltd,HALIFAX,25000,Energy-Electric,Revenue
17/11/2022,IN05257350,506.76,,Npower Ltd,Holmfirth,25000,Energy-Electric,Revenue
17/11/2022,IN05257351,870.26,,Npower Ltd,ILKLEY,25000,Energy-Electric,Revenue
17/11/2022,IN05257352,1434.02,,Npower Ltd,ILLINGWORTH,25000,Energy-Electric,Revenue
17/11/2022,IN05257353,1290.17,,Npower Ltd,KEIGHLEY,25000,Energy-Electric,Revenue
17/11/2022,7909626,3198.62,,Certas Energy UK Ltd t/a Bayford Oi,HUNSLET,30200,Vehicle Fuel,Revenue
17/11/2022,7901793,4436.84,,Certas Energy UK Ltd t/a Bayford Oi,Cleckheaton,30200,Vehicle Fuel,Revenue
17/11/2022,IN05257354,675.76,,Npower Ltd,MIRFIELD,25000,Energy-Electric,Revenue
17/11/2022,650762900000008,640.02,,Yorkshire Water,Corporate Management and Support,59164,Equipment,Capital
17/11/2022,650762910000006,1475.08,,Yorkshire Water,Corporate Management and Support,59164,Equipment,Capital
17/11/2022,650762920000004,963.04,,Yorkshire Water,Corporate Management and Support,59164,Equipment,Capital
17/11/2022,650762930000002,990.5,,Yorkshire Water,Corporate Management and Support,59164,Equipment,Capital
17/11/2022,IN05257356,1042.54,,Npower Ltd,MOORTOWN,25000,Energy-Electric,Revenue
17/11/2022,IN05257358,761.18,,Npower Ltd,MORLEY,25000,Energy-Electric,Revenue
17/11/2022,IN05257359,838.68,,Npower Ltd,ODSAL,25000,Energy-Electric,Revenue
17/11/2022,91289940,4805.51,,Whittan Industrial Ltd (t/a Link 51,Corporate Management and Support,59163,Furniture & Fittings,Capital
17/11/2022,114626447,1274.1,,M I Supplies Ltd,SUPPLIES SECTION,41500,Clothing,Revenue
17/11/2022,15853,875,,Bradshaw Gass & Hope Llp,PROPERTY,21014,General Rep & Maint,Revenue
17/11/2022,9568,5786.28,,Wharfedale Construction Ltd,STANNINGLEY,21017,Minor Property Works,Revenue
17/11/2022,54282,872.86,,Intellitec MV Ltd,PROPERTY,21013,Electrical Reps (Fr),Revenue
17/11/2022,10713,1390,,Ioda Limited,TRAINING DELIVERY,19235,Emp Svc Tng,Revenue
18/11/2022,543764,655.4,,Gresham Office Furniture,Corporate Management and Support,59163,Furniture & Fittings,Capital
18/11/2022,543765,3037.25,,Gresham Office Furniture,Corporate Management and Support,59163,Furniture & Fittings,Capital
18/11/2022,10511,1995,,Pilat Europe Limited,EMPLOYMENT SERVICES,18301,Specialists Fees,Revenue
18/11/2022,2021-79-1,1097.91,,Daniels Catering,West Yorkshire Fire And Rescue Service,40502,Food,Revenue
18/11/2022,17684,568.8,,Heavy Woollen Textile Co Ltd,SUPPLIES SECTION,41500,Clothing,Revenue
18/11/2022,0001052991,535.75,,Murodigital,CORPORATE SERVICES,42100,Stationery,Revenue
18/11/2022,91289613,599,,Whittan Industrial Ltd (t/a Link 51,Corporate Management and Support,59163,Furniture & Fittings,Capital
21/11/2022,650764380000002,999.41,,Yorkshire Water,Corporate Management and Support,59164,Equipment,Capital
21/11/2022,65076356,-999.41,,Yorkshire Water,Corporate Management and Support,59164,Equipment,Capital
21/11/2022,650764390000000,1475.08,,Yorkshire Water,Corporate Management and Support,59164,Equipment,Capital
21/11/2022,650764400000004,1475.08,,Yorkshire Water,Corporate Management and Support,59164,Equipment,Capital
21/11/2022,650764410000002,640.02,,Yorkshire Water,Corporate Management and Support,59164,Equipment,Capital
21/11/2022,650764970000008,1488.36,,Yorkshire Water,Corporate Management and Support,59164,Equipment,Capital
21/11/2022,65076496000000X,1488.36,,Yorkshire Water,Corporate Management and Support,59164,Equipment,Capital
21/11/2022,7899346,4448.7,,Certas Energy UK Ltd t/a Bayford Oi,PONTEFRACT,30200,Vehicle Fuel,Revenue
21/11/2022,IN05257363,832.98,,Npower Ltd,Slaithwaite,25000,Energy-Electric,Revenue
21/11/2022,IN05257365,2469.24,,Npower Ltd,HUDDERSFIELD,25000,Energy-Electric,Revenue
21/11/2022,IN05257366,1655.1,,Npower Ltd,HUNSLET,25000,Energy-Electric,Revenue
21/11/2022,IN05257367,986.15,,Npower Ltd,RAWDON,25000,Energy-Electric,Revenue
21/11/2022,IN05257369,1297.95,,Npower Ltd,BINGLEY,25000,Energy-Electric,Revenue
21/11/2022,IN05257370,1538.77,,Npower Ltd,Cleckheaton,25000,Energy-Electric,Revenue
21/11/2022,IN05257371,967.51,,Npower Ltd,COOKRIDGE,25000,Energy-Electric,Revenue
21/11/2022,IN05257373,2838.8,,Npower Ltd,STANNINGLEY,25000,Energy-Electric,Revenue
21/11/2022,IN05257375,1197.15,,Npower Ltd,Ossett,25000,Energy-Electric,Revenue
21/11/2022,IN05291688,13384.65,,Npower Ltd,PROPERTY,25000,Energy-Electric,Revenue
21/11/2022,32930,6961.69,,Emergency One (Uk) Ltd,FLEET MANAGEMENT,30004,Rep-Ext Contractors,Revenue
21/11/2022,219188,4212.04,,CMT Flexibles Ltd,OPERATIONS EQUIPMENT,40005,Operational Equ Pch,Revenue
21/11/2022,6593,915,,The Outreach Organisation Ltd,TRAINING DELIVERY,19223,Operational Training,Revenue
21/11/2022,SI629,874,,Jupiter Construction Ltd,Corporate Management and Support,59052,Cont-External,Capital
21/11/2022,6571,5700,,The Outreach Organisation Ltd,TRAINING DELIVERY,19223,Operational Training,Revenue
21/11/2022,SI-2307,619.64,,Cafe Perfection Ltd,NORMANTON,21017,Various,Revenue
21/11/2022,033777,556.46,,BCS Electrics Ltd,PROPERTY,21013,Electrical Reps (Fr),Revenue
21/11/2022,033778,599.77,,BCS Electrics Ltd,FSHQ Build Project,21013,Electrical Reps (Fr),Revenue
23/11/2022,MIN0231623,693.54,,Truck Parts (North Wales),FLEET MAINTENANCE,30001,Dir Cost-Spare Parts,Revenue
23/11/2022,650764980000006,906.12,,Yorkshire Water,Corporate Management and Support,59164,Equipment,Capital
23/11/2022,2810033102,610.49,,Yorkshire Ambulance Serv Nhs,Comah,43501,Conference Expenses,Revenue
23/11/2022,8117,3510,,Westco Trading Limited,Corporate Communications,17000,Hired Staff,Revenue
23/11/2022,EC20784486,775,,GCI Network Solutions Limited,Information Technlgy,43018,Wan Rental,Revenue
23/11/2022,OP/I950296,3287.49,,Phoenix Software Ltd,Information Technlgy,43103,ICT Maintenance & Support,Revenue
23/11/2022,222631,1033.56,,Darcy Products Limited,MYTHOLMROYD,21014,General Rep & Maint,Revenue
23/11/2022,SPS07347RV.D(734,660,,Socrates Psychological Services,Health & Safety,18301,Specialists Fees,Revenue
23/11/2022,0000319235,808.64,,SYNLAB Laboratory Services Ltd,Health & Safety,18301,Specialists Fees,Revenue
23/11/2022,OP/I946731,923.3,,Phoenix Software Ltd,Information Technlgy,43103,ICT Maintenance & Support,Revenue
23/11/2022,OP/I950178,529.73,,Phoenix Software Ltd,Information Technlgy,43103,ICT Maintenance & Support,Revenue
23/11/2022,8068,3200,,Westco Trading Limited,Corporate Communications,17000,Hired Staff,Revenue
23/11/2022,8118,8400,,Westco Trading Limited,Corporate Communications,17000,Hired Staff,Revenue
23/11/2022,10862,695,,Ioda Limited,TRAINING DELIVERY,19235,Emp Svc Tng,Revenue
23/11/2022,INV-0661,2200,,K Lamb Associates Ltd,TRAINING DELIVERY,19223,Operational Training,Revenue
23/11/2022,9153,558.76,,Fire Hosetech,OPERATIONS EQUIPMENT,40005,Operational Equ Pch,Revenue
23/11/2022,9157,2340,,Fire Hosetech,OPERATIONS EQUIPMENT,40005,Operational Equ Pch,Revenue
23/11/2022,6555,1345,,The Outreach Organisation Ltd,TRAINING DELIVERY,19223,Operational Training,Revenue
23/11/2022,91876717,3600,,Serco Ltd,TRAINING DELIVERY,19223,Operational Training,Revenue
23/11/2022,2617114,63503.22,,Home Office,Operations,43026,Radio Licensing,Revenue
23/11/2022,7829263,4492.5,,Certas Energy UK Ltd t/a Bayford Oi,HUDDERSFIELD,25002,Energy-Fuel Oil,Revenue
23/11/2022,INV-1999151,4000.32,,OUTCO Limited,PROPERTY,24000,Grounds Maintenance,Revenue
23/11/2022,42001,8400,,Hall Lane Recyclers Ltd,Various,40025,Scrap Cars Purch,Revenue
23/11/2022,SIN022646,979.88,,Dearnleys,BINGLEY,21017,Minor Property Works,Revenue
24/11/2022,650766080000003,898.04,,Yorkshire Water,Corporate Management and Support,59164,Equipment,Capital
24/11/2022,650766070000005,990.5,,Yorkshire Water,Corporate Management and Support,59164,Equipment,Capital
24/11/2022,65076742000000X,1540.08,,Yorkshire Water,Corporate Management and Support,59164,Equipment,Capital
24/11/2022,650767430000008,1488.36,,Yorkshire Water,Corporate Management and Support,59164,Equipment,Capital
24/11/2022,650767440000006,1553.36,,Yorkshire Water,Corporate Management and Support,59164,Equipment,Capital
24/11/2022,650767450000004,1488.36,,Yorkshire Water,Corporate Management and Support,59164,Equipment,Capital
24/11/2022,650225480000001,1030.5,,Yorkshire Water,Corporate Management and Support,59164,Equipment,Capital
24/11/2022,1588269-01,-570,,Crossroads Truck & Bus Ltd,FLEET MAINTENANCE,30001,Dir Cost-Spare Parts,Revenue
24/11/2022,1588002-01,1511.6,,Crossroads Truck & Bus Ltd,FLEET MAINTENANCE,30001,Dir Cost-Spare Parts,Revenue
24/11/2022,IN05173278,1898.46,,Npower Ltd,Dewsbury,25000,Energy-Electric,Revenue
24/11/2022,IN05173279,2348.69,,Npower Ltd,Killingbeck,25000,Energy-Electric,Revenue
24/11/2022,IN05173280,1590.43,,Npower Ltd,Shipley,25000,Energy-Electric,Revenue
24/11/2022,IN05173281,9236.25,,Npower Ltd,Service Delivery Centre,25000,Energy-Electric,Revenue
24/11/2022,IN05173282,3640.96,,Npower Ltd,BRADFORD,25000,Energy-Electric,Revenue
24/11/2022,IN05173283,1904.33,,Npower Ltd,PONTEFRACT,25000,Energy-Electric,Revenue
24/11/2022,IN05173284,1233.92,,Npower Ltd,NORMANTON,25000,Energy-Electric,Revenue
24/11/2022,IN05173285,1845.05,,Npower Ltd,ROTHWELL,25000,Energy-Electric,Revenue
24/11/2022,IN05173286,2099.14,,Npower Ltd,LEEDS,25000,Energy-Electric,Revenue
24/11/2022,IN05173287,1481.89,,Npower Ltd,WAKEFIELD,25000,Energy-Electric,Revenue
24/11/2022,IN05257368,1536.45,,Npower Ltd,Various,25000,Energy-Electric,Revenue
24/11/2022,IN05257372,1131.14,,Npower Ltd,Various,25000,Energy-Electric,Revenue
24/11/2022,E2016173794,10656.48,,Allstar Business Solutions Ltd,Various,30200,Various,Revenue
24/11/2022,INV17631,3000,,Hornbill Service Management Limited,Information Technlgy,43103,ICT Maintenance & Support,Revenue
24/11/2022,1182978,12726,,Fireangel Safety Technology Ltd,Corporate Management and Support,59164,Equipment,Capital
24/11/2022,22047474,1420.75,,Faithful+Gould Limited,Corporate Management and Support,59058,Fee-External,Capital
24/11/2022,1294,1562,,Smart Guard Security Ltd,PROPERTY,20000,Ann Contract/Service,Revenue
24/11/2022,1364,1562,,Smart Guard Security Ltd,PROPERTY,20000,Ann Contract/Service,Revenue
24/11/2022,3165831,690,,CIPFA Business Limited,TRAINING DELIVERY,19236,Finance Tng,Revenue
25/11/2022,INV-29792,2396.94,,Total ID Ltd,Various,19204,Various,Revenue
25/11/2022,198122,612,,Siroflex Ltd,SUPPLIES SECTION,40005,Operational Equ Pch,Revenue
25/11/2022,SI-298112,751.9,,Medtree,SUPPLIES SECTION,40006,Training Equ Purch,Revenue
28/11/2022,89000128276,62923.66,,West Yorkshire Pension Fund,EMPLOYMENT SERVICES,18301,Specialists Fees,Revenue
28/11/2022,F01572331,3199.68,,Leeds Beckett University,TRAINING DELIVERY,19242,Strategic Dev Tng,Revenue
28/11/2022,352034,860,,Systems Assurance Ltd,Information Technlgy,43022,ICT Spares & Repairs,Revenue
28/11/2022,SPS06585RM.D(658,1320,,Socrates Psychological Services,Health & Safety,18301,Specialists Fees,Revenue
28/11/2022,SPS06636MC.D(663,990,,Socrates Psychological Services,Health & Safety,18301,Specialists Fees,Revenue
28/11/2022,OP/I950661,1574,,Phoenix Software Ltd,Information Technlgy,44600,Subscriptions,Revenue
28/11/2022,89000125176,880,,West Yorkshire Pension Fund,FINANCE SECTION,40205,Book/Publications,Revenue
28/11/2022,89000126226,560,,West Yorkshire Pension Fund,FINANCE SECTION,40205,Book/Publications,Revenue
28/11/2022,548553,746.64,,Garrards (Hudds) Ltd,West Yorkshire Fire And Rescue Service,40006,Training Equ Purch,Revenue
28/11/2022,INV-2533,2676.97,,Robert Whetham Associates,PROPERTY,20002,Contract Management,Revenue
28/11/2022,SI-2313,546.64,,Cafe Perfection Ltd,Dewsbury,21013,Electrical Reps (Fr),Revenue
28/11/2022,J5653-JAT-01,74235.61,,Advanced Power Technology Ltd,Corporate Management and Support,59166,Computer Costs,Capital
28/11/2022,IN92312,5471.09,,Elis UK Ltd,SUPPLIES SECTION,41900,Laundry,Revenue
28/11/2022,EC20771436,775,,GCI Network Solutions Limited,Information Technlgy,43018,Wan Rental,Revenue
28/11/2022,IRIN790129,4797.24,439.5,Lex Autolease Ltd,FLEET MANAGEMENT,34001,Vehicle Leasing,Revenue
28/11/2022,9619615,2066.5,,Chubb Fire & Security,Various,40005,Operational Equ Pch,Revenue
30/11/2022,13054,509.8,,Slideandtilt.Com Ltd,FLEET MAINTENANCE,30001,Dir Cost-Spare Parts,Revenue
30/11/2022,277718,2004.66,,J R Industries Ltd,FLEET MAINTENANCE,30001,Dir Cost-Spare Parts,Revenue
30/11/2022,89000128285,1350,,West Yorkshire Pension Fund,EMPLOYMENT SERVICES,18301,Specialists Fees,Revenue
30/11/2022,UK10/112022/6171,1604,,Vodafone Business Solutions,Emergency Serv. Comms. Programme - WY,43042,Direct Network Service Provider,Revenue
30/11/2022,IN84534,5351.39,,Elis UK Ltd,SUPPLIES SECTION,41900,Laundry,Revenue
30/11/2022,IN88166,5833.23,,BAM FM Ltd (Manchester),CASTLEFORD,21012,Heating & Mechanical,Revenue
30/11/2022,IN88171,20913.36,,BAM FM Ltd (Manchester),PROPERTY,20000,Ann Contract/Service,Revenue
30/11/2022,10725,3855,,Ioda Limited,EMPLOYEE RESOURCING,19201,Training Fees,Revenue
30/11/2022,033854,704.34,,BCS Electrics Ltd,BRADFORD,21013,Electrical Reps (Fr),Revenue
30/11/2022,033856,523.47,,BCS Electrics Ltd,HUNSLET,21013,Electrical Reps (Fr),Revenue
30/11/2022,033858,1106.24,,BCS Electrics Ltd,HALIFAX,21013,Electrical Reps (Fr),Revenue
30/11/2022,033859,572.4,,BCS Electrics Ltd,LEEDS,21013,Electrical Reps (Fr),Revenue
30/11/2022,033863,15552.73,,BCS Electrics Ltd,PROPERTY,20000,Ann Contract/Service,Revenue
30/11/2022,10877,1390,,Ioda Limited,TRAINING DELIVERY,19235,Emp Svc Tng,Revenue
30/11/2022,115840918,598.5,,M I Supplies Ltd,SUPPLIES SECTION,41500,Clothing,Revenue
30/11/2022,SI017666,11000,,Simpson Associates Information Serv,Performance Management,42511,Consultancy Fees,Revenue
30/11/2022,12781,2003.88,,T Kirk Forestry,Various,45119,USAR Training,Revenue
30/11/2022,99,1192.16,,Clarks Technology Solutions Limited,FLEET MANAGEMENT,34002,Vhcle Leas Misc Exp,Revenue
30/11/2022,IW801272,675,,B&M (Waste Services) Limited,SUPPLIES SECTION,28508,Premises,Revenue
30/11/2022,53173523,600,,Mitsubishi Electric Europe B.V,PROPERTY,21013,Electrical Reps (Fr),Revenue
30/11/2022,HSMLI2200343,23368.08,,Hornbill Service Management Limited,Corporate Management and Support,59166,Computer Costs,Capital
30/11/2022,853395,1004.47,,Wavenet Limited,Information Technlgy,43015,Landlines Call Charges,Revenue
01/12/2022,INV0289005,627.98,,J H M Butt & Co Ltd,FLEET MAINTENANCE,30005,Workshop Equipment,Revenue
01/12/2022,650768530000001,1064.41,,Yorkshire Water,Corporate Management and Support,59164,Equipment,Capital
01/12/2022,65076854000000X,1488.36,,Yorkshire Water,Corporate Management and Support,59164,Equipment,Capital
01/12/2022,650768550000008,1540.08,,Yorkshire Water,Corporate Management and Support,59164,Equipment,Capital
01/12/2022,650770570000009,1070.37,,Yorkshire Water,Corporate Management and Support,59164,Equipment,Capital
01/12/2022,650770580000007,710.78,,Yorkshire Water,Corporate Management and Support,59164,Equipment,Capital
01/12/2022,650770590000005,710.78,,Yorkshire Water,Corporate Management and Support,59164,Equipment,Capital
01/12/2022,650770600000009,691.63,,Yorkshire Water,Corporate Management and Support,59164,Equipment,Capital
01/12/2022,650770610000007,1488.36,,Yorkshire Water,Corporate Management and Support,59164,Equipment,Capital
01/12/2022,650770630000003,645.78,,Yorkshire Water,Corporate Management and Support,59164,Equipment,Capital
01/12/2022,650770640000001,1594.03,,Yorkshire Water,Corporate Management and Support,59164,Equipment,Capital
01/12/2022,65029507,-1030.5,,Yorkshire Water,Corporate Management and Support,59164,Equipment,Capital
01/12/2022,650774490000003,1030.5,,Yorkshire Water,Corporate Management and Support,59164,Equipment,Capital
01/12/2022,650774500000007,705.02,,Yorkshire Water,Corporate Management and Support,59164,Equipment,Capital
01/12/2022,650774510000005,990.5,,Yorkshire Water,Corporate Management and Support,59164,Equipment,Capital
01/12/2022,7131/06784768,706.2,,Brammer Buck & Hickman (Head Office,OPERATIONS EQUIPMENT,41500,Clothing,Revenue
01/12/2022,10887,695,,Ioda Limited,TRAINING DELIVERY,19235,Emp Svc Tng,Revenue
01/12/2022,ATC-17820,3937.5,,UK-AFI - Lincoln,TRAINING DELIVERY,19208,Fire Safy Crses-Extl,Revenue
01/12/2022,458,520,,Jody Griffiths t/a Grove Engineerin,FIRE LEGAL,42587,Legal Expenses,Revenue
01/12/2022,58683,865,,Concept Engineerings Ltd,OPERATIONS EQUIPMENT,40006,Training Equ Purch,Revenue
01/12/2022,2021-79-3,1091.38,,Daniels Catering,West Yorkshire Fire and Rescue Service,40502,Food,Revenue
01/12/2022,530063,46095.46,,Churchill Contract Services Limited,PROPERTY,28502,Contract Cleaning,Revenue
01/12/2022,012/1200614A,7423.71,,Lindum Group Limited,FSHQ Build Project,21014,General Rep & Maint,Revenue
01/12/2022,441851-033MA,4189.29,,Virgin Media Payments Ltd,Information Technlgy,43017,Corporate Mobile Phone,Revenue
01/12/2022,114836848,1463,,M I Supplies Ltd,SUPPLIES SECTION,41500,Clothing,Revenue
02/12/2022,1589412-01,535.4,,Crossroads Truck & Bus Ltd,FLEET MAINTENANCE,30001,Dir Cost-Spare Parts,Revenue
02/12/2022,115608207,2523.67,,M I Supplies Ltd,SUPPLIES SECTION,41500,Clothing,Revenue
02/12/2022,18666A,11400,,Virtual College Ltd,TRAINING DELIVERY,19223,Operational Training,Revenue
02/12/2022,1273,2432.5,,Ian Tunnicliffe Building Consultanc,Corporate Management and Support,59058,Fee-External,Capital
02/12/2022,179,47176.97,,Constructa Limited,Corporate Management and Support,59052,Cont-External,Capital
05/12/2022,17261637,703.58,,Corona Energy,KEIGHLEY,25001,Energy-Gas,Revenue
05/12/2022,1589460-01,1758.22,,Crossroads Truck & Bus Ltd,FLEET MAINTENANCE,30001,Dir Cost-Spare Parts,Revenue
05/12/2022,650775810000003,1553.36,,Yorkshire Water,Corporate Management and Support,59164,Equipment,Capital
05/12/2022,650775820000001,1488.36,,Yorkshire Water,Corporate Management and Support,59164,Equipment,Capital
05/12/2022,650775840000008,1553.36,,Yorkshire Water,Corporate Management and Support,59164,Equipment,Capital
05/12/2022,92079,3822.56,,Ask the Office Ltd,SUPPLIES SECTION,Various,Various,Revenue
05/12/2022,544768,2484,,Gresham Office Furniture,Corporate Management and Support,59163,Furniture & Fittings,Capital
05/12/2022,RSLSI22006708,788,,Radiocoms System Ltd (Lon),West Yorkshire Fire and Rescue Service,40005,Operational Equ Pch,Revenue
05/12/2022,INV00071196,546,,London Hire Limited,FLEET MANAGEMENT,32002,Vehicle & Plant Hire,Revenue
05/12/2022,INV00071195,910,,London Hire Limited,West Yorkshire Fire and Rescue Service,32002,Vehicle & Plant Hire,Revenue
05/12/2022,23031,696,,Ruth Lee Ltd,OPERATIONS EQUIPMENT,Various,Various,Revenue
05/12/2022,1005,1000,,Women in the Fire Service UK,CORPORATE DIVERSITY,44600,Subscriptions,Revenue
05/12/2022,25315,2750,,Thornley & Lumb Partnership Ltd,Corporate Management and Support,59052,Cont-External,Capital
05/12/2022,ARLSI07029,4243.2,,Airmax Remote,Information Technlgy,43103,ICT Maintenance & Support,Revenue
05/12/2022,0940000048-120,3566.18,,Airwave Solutions Ltd,Information Technlgy,43026,Radio Licensing,Revenue
05/12/2022,PSI1480646,1658.42,,HJ Sock Group Ltd,SUPPLIES SECTION,41500,Clothing,Revenue
06/12/2022,53R01355,-576.26,,Tructyre Fleet Management Ltd,FLEET MANAGEMENT,30000,Tyre Purchase,Revenue
06/12/2022,33027,908.5,,Emergency One (Uk) Ltd,FLEET MAINTENANCE,30001,Dir Cost-Spare Parts,Revenue
06/12/2022,7934730,5682.8,,Certas Energy UK Ltd t/a Bayford Oi,STANNINGLEY,30200,Vehicle Fuel,Revenue
06/12/2022,7969889,5429.6,,Certas Energy UK Ltd t/a Bayford Oi,Shipley,30200,Vehicle Fuel,Revenue
06/12/2022,NOVEMBER2022IMPR,518,,Royal British Legion,Chief Fire Officer,40211,Hospitality Authority,Revenue
06/12/2022,89119,698.4,,"Richardson Bus Equip Dist Ltd,",Control Project,40100,Furniture,Revenue
06/12/2022,900978905,550,,Portakabin Limited,TODMORDEN,21014,General Rep & Maint,Revenue
06/12/2022,960040043,-975.01,,Portakabin Limited,TODMORDEN,21014,General Rep & Maint,Revenue
06/12/2022,6771988,622,,ESPO- Eastern Shires Purchasing Org,Corporate Management and Support,59163,Furniture & Fittings,Capital
06/12/2022,QA-SIN-000227698,20000,,QA Limited,TRAINING DELIVERY,19206,Further Educ'N-Extl,Revenue
06/12/2022,IN28346,2700.8,,Gremedia Screenprint Ltd,WATER OFFICE,40027,Hydrants Repair,Revenue
06/12/2022,SPS07416ARH.D(74,880,,Socrates Psychological Services,Health & Safety,18301,Specialists Fees,Revenue
06/12/2022,033925,647.58,,BCS Electrics Ltd,HALIFAX,21013,Electrical Reps (Fr),Revenue
06/12/2022,033927,601.87,,BCS Electrics Ltd,LEEDS,21013,Electrical Reps (Fr),Revenue
06/12/2022,IN106599,2416.81,,Elis UK Ltd,SUPPLIES SECTION,41900,Laundry,Revenue
06/12/2022,A232486,768.69,,British Telecom,Information Technlgy,43022,ICT Spares & Repairs,Revenue
06/12/2022,9986,8066.36,,Tructyre Fleet Management Ltd,FLEET MANAGEMENT,30000,Tyre Purchase,Revenue
06/12/2022,900977195,918.65,,Portakabin Limited,FSHQ Build Project,21014,General Rep & Maint,Revenue
06/12/2022,IN001132509,16487.12,,GTT Communications Inc,Information Technlgy,43018,Wan Rental,Revenue
07/12/2022,65077583000000X,640.02,,Yorkshire Water,Corporate Management and Support,59164,Equipment,Capital
07/12/2022,6771860,797,,ESPO- Eastern Shires Purchasing Org,SUPPLIES SECTION,40008,White Goods Purch,Revenue
07/12/2022,9165,8056.91,,Fire Hosetech,OPERATIONS EQUIPMENT,40005,Operational Equ Pch,Revenue
07/12/2022,3210155,2208,,Bristol Care,OPERATIONS EQUIPMENT,40005,Operational Equ Pch,Revenue
07/12/2022,58734,1930,,Concept Engineerings Ltd,Kirklees Dist Com,40006,Training Equ Purch,Revenue
07/12/2022,1226,1800,,Evolve OD Ltd,TRAINING DELIVERY,19203,Non Uniformed,Revenue
07/12/2022,1232,1200,,Evolve OD Ltd,TRAINING DELIVERY,19203,Non Uniformed,Revenue
07/12/2022,1233,1200,,Evolve OD Ltd,TRAINING DELIVERY,19203,Non Uniformed,Revenue
07/12/2022,2021-79-4,768.5,,Daniels Catering,West Yorkshire Fire and Rescue Service,40502,Food,Revenue
07/12/2022,29058,3360,,APEA,TRAINING DELIVERY,19208,Fire Safy Crses-Extl,Revenue
07/12/2022,2021-79-2,1098.27,,Daniels Catering,West Yorkshire Fire and Rescue Service,40502,Food,Revenue
07/12/2022,152703,3616,,Southcombe Brothers Ltd,West Yorkshire Fire and Rescue Service,41500,Clothing,Revenue
07/12/2022,1784,1888,,Speedings Limited,OPERATIONS EQUIPMENT,40005,Operational Equ Pch,Revenue
07/12/2022,6509,1209.58,,Aspect Building Solutions Limited,Corporate Management and Support,59052,Cont-External,Capital
07/12/2022,6534,55384,,Aspect Building Solutions Limited,Corporate Management and Support,59052,Cont-External,Capital
08/12/2022,RACR397810,-2563.08,,Lex Autolease Ltd,FLEET MANAGEMENT,34001,Vehicle Leasing,Revenue
08/12/2022,MIN4603988,2563.08,,Lex Autolease Ltd,FLEET MANAGEMENT,34001,Vehicle Leasing,Revenue
08/12/2022,RACR397808,-2563.08,,Lex Autolease Ltd,FLEET MANAGEMENT,34001,Vehicle Leasing,Revenue
08/12/2022,MIN4603917,2563.08,,Lex Autolease Ltd,FLEET MANAGEMENT,34001,Vehicle Leasing,Revenue
08/12/2022,RACR397806,-2563.08,,Lex Autolease Ltd,FLEET MANAGEMENT,34001,Vehicle Leasing,Revenue
08/12/2022,MIN4603627,2563.08,,Lex Autolease Ltd,FLEET MANAGEMENT,34001,Vehicle Leasing,Revenue
08/12/2022,EXI2017011,542.11,50.43,Lex Autolease Ltd,FLEET MANAGEMENT,34004,Vehicle Leasing,Revenue
08/12/2022,EXI2017601,462.87,43.04,Lex Autolease Ltd,FLEET MANAGEMENT,34004,Vehicle Leasing,Revenue
08/12/2022,650777920000001,1553.36,,Yorkshire Water,Corporate Management and Support,59164,Equipment,Capital
08/12/2022,65077793000000X,1064.41,,Yorkshire Water,Corporate Management and Support,59164,Equipment,Capital
08/12/2022,650778290000004,1488.36,,Yorkshire Water,Corporate Management and Support,59164,Equipment,Capital
08/12/2022,650778300000008,1488.36,,Yorkshire Water,Corporate Management and Support,59164,Equipment,Capital
08/12/2022,650778310000006,1488.36,,Yorkshire Water,Corporate Management and Support,59164,Equipment,Capital
08/12/2022,650778320000004,1488.36,,Yorkshire Water,Corporate Management and Support,59164,Equipment,Capital
08/12/2022,650778330000002,610.22,,Yorkshire Water,Corporate Management and Support,59164,Equipment,Capital
08/12/2022,DF/2095,2400,,Dutton Fisher Associates Limited,TRAINING DELIVERY,19203,Non Uniformed,Revenue
08/12/2022,6504,1794,,Aspect Building Solutions Limited,Meltham,21014,General Rep & Maint,Revenue
08/12/2022,6508,6627.48,,Aspect Building Solutions Limited,BINGLEY,21014,General Rep & Maint,Revenue
08/12/2022,6510,1576.86,,Aspect Building Solutions Limited,ILLINGWORTH,21014,General Rep & Maint,Revenue
08/12/2022,8389433,500,,Marsh Limited,FINANCE SECTION,42508,Central Insurances,Revenue
08/12/2022,RAIN397807,2563.08,,Lex Autolease Ltd,FLEET MANAGEMENT,34001,Vehicle Leasing,Revenue
08/12/2022,RAIN397809,2563.08,,Lex Autolease Ltd,FLEET MANAGEMENT,34001,Vehicle Leasing,Revenue
08/12/2022,RAIN397811,2563.08,,Lex Autolease Ltd,FLEET MANAGEMENT,34001,Vehicle Leasing,Revenue
08/12/2022,INV148069,520.83,,Bells Domestics,Procurement,40008,White Goods Purch,Revenue
08/12/2022,MJA02304,671.22,,MJA Consultants,FSHQ Build Project,21013,Electrical Reps (Fr),Revenue
08/12/2022,6882894,1239.13,,Michael Page International Recruitm,Corporate Communications,17000,Hired Staff,Revenue
08/12/2022,6882895,971.21,,Michael Page International Recruitm,Corporate Communications,17000,Hired Staff,Revenue
08/12/2022,IN88319,826.07,,BAM FM Ltd (Manchester),BRADFORD,21012,Heating & Mechanical,Revenue
08/12/2022,IN88330,587.8,,BAM FM Ltd (Manchester),HALIFAX,21012,Heating & Mechanical,Revenue
08/12/2022,IN88337,638.16,,BAM FM Ltd (Manchester),Holmfirth,21012,Heating & Mechanical,Revenue
08/12/2022,MIN4706066,6433.44,603.28,Lex Autolease Ltd,Strategic Development,34001,Vehicle Leasing,Revenue
08/12/2022,MIN4706067,5028.24,455.04,Lex Autolease Ltd,Central Staffing Tm,34001,Vehicle Leasing,Revenue
08/12/2022,MIN4706068,3758.52,,Lex Autolease Ltd,FLEET MANAGEMENT,34001,Vehicle Leasing,Revenue
08/12/2022,MIN4706069,6621.36,606.61,Lex Autolease Ltd,Secondments,34001,Vehicle Leasing,Revenue
08/12/2022,2619157,63503.22,,Home Office,Operations,43026,Radio Licensing,Revenue
08/12/2022,MIN4706070,3571.8,327.2,Lex Autolease Ltd,Bfd Dist Com,34001,Vehicle Leasing,Revenue
08/12/2022,INV-1835,1849.85,,Legal Experience Training Ltd,TRAINING DELIVERY,19208,Fire Safy Crses-Extl,Revenue
08/12/2022,039138,15125,,CACI Limited,Fire Safety Prev,40037,Safety Equipment,Revenue
08/12/2022,10901,695,,Ioda Limited,TRAINING DELIVERY,19235,Emp Svc Tng,Revenue
08/12/2022,1228,2400,,Evolve OD Ltd,TRAINING DELIVERY,19203,Non Uniformed,Revenue
09/12/2022,1589473-01,517.66,,Crossroads Truck & Bus Ltd,FLEET MAINTENANCE,30001,Dir Cost-Spare Parts,Revenue
09/12/2022,650455920000004,1044.41,,Yorkshire Water,Corporate Management and Support,59164,Equipment,Capital
09/12/2022,650449050000003,1488.36,,Yorkshire Water,Corporate Management and Support,59164,Equipment,Capital
09/12/2022,650533410000000,710.78,,Yorkshire Water,Corporate Management and Support,59164,Equipment,Capital
09/12/2022,E2016231624,12929.04,,Allstar Business Solutions Ltd,Various,Various,Various,Revenue
09/12/2022,OP/I944791,3800,,Phoenix Software Ltd,Information Technlgy,42511,Consultancy Fees,Revenue
09/12/2022,12840,1185,,Blyth Equipment Limited,TRAINING DELIVERY,19243,Tech Svcs Tng,Revenue
09/12/2022,NFCC6230,1200,,Chief Fire Officers Assn,TRAINING DELIVERY,19205,Health & Safety,Revenue
09/12/2022,012/1200619,9946.15,,Lindum Group Limited,FSHQ Build Project,21014,General Rep & Maint,Revenue
09/12/2022,69496773,548.21,,Personnel Hygiene Services Limited,PROPERTY,20000,Ann Contract/Service,Revenue
09/12/2022,01H18329,7798.65,,Tructyre Fleet Management Ltd,FLEET MANAGEMENT,30000,Tyre Purchase,Revenue
09/12/2022,12819,3975.21,,T Kirk Forestry,National Resilience,45123,Chainsaw Operator,Revenue
09/12/2022,6876663,1356.35,,Michael Page International Recruitm,Corporate Communications,17000,Hired Staff,Revenue
09/12/2022,42121,3750,,Hall Lane Recyclers Ltd,Various,40025,Scrap Cars Purch,Revenue
09/12/2022,12655922,921.08,,Maintel Europe Ltd,Information Technlgy,43022,ICT Spares & Repairs,Revenue
12/12/2022,7987321,3927.11,,Certas Energy UK Ltd t/a Bayford Oi,HUDDERSFIELD,30200,Vehicle Fuel,Revenue
12/12/2022,8011170,3861.09,,Certas Energy UK Ltd t/a Bayford Oi,BRADFORD,30200,Vehicle Fuel,Revenue
12/12/2022,650779280000002,1594.03,,Yorkshire Water,Corporate Management and Support,59164,Equipment,Capital
12/12/2022,650779290000000,1488.36,,Yorkshire Water,Corporate Management and Support,59164,Equipment,Capital
12/12/2022,650779300000004,999.41,,Yorkshire Water,Corporate Management and Support,59164,Equipment,Capital
12/12/2022,650779310000002,999.41,,Yorkshire Water,Corporate Management and Support,59164,Equipment,Capital
12/12/2022,650779350000005,1594.03,,Yorkshire Water,Corporate Management and Support,59164,Equipment,Capital
12/12/2022,650779330000009,1488.36,,Yorkshire Water,Corporate Management and Support,59164,Equipment,Capital
12/12/2022,650779340000007,1594.03,,Yorkshire Water,Corporate Management and Support,59164,Equipment,Capital
12/12/2022,23-R1575,1311.5,,Weber Rescue Uk Ltd,OPERATIONS EQUIPMENT,40005,Operational Equ Pch,Revenue
12/12/2022,6652,1385,,The Outreach Organisation Ltd,TRAINING DELIVERY,19223,Operational Training,Revenue
12/12/2022,6645,6040,,The Outreach Organisation Ltd,TRAINING DELIVERY,19223,Operational Training,Revenue
12/12/2022,6625,885,,The Outreach Organisation Ltd,TRAINING DELIVERY,19223,Operational Training,Revenue
13/12/2022,17261571,-703.22,,Corona Energy,Service Delivery Centre,25001,Energy-Gas,Revenue
13/12/2022,17261572,-650.48,,Corona Energy,STANNINGLEY,25001,Energy-Gas,Revenue
13/12/2022,17261574,-1010.3,,Corona Energy,BRADFORD,25001,Energy-Gas,Revenue
13/12/2022,17261589,-1967.73,,Corona Energy,PROPERTY,25001,Energy-Gas,Revenue
13/12/2022,17261608,539.99,,Corona Energy,GARFORTH,25001,Energy-Gas,Revenue
13/12/2022,17261610,661.14,,Corona Energy,COOKRIDGE,25001,Energy-Gas,Revenue
13/12/2022,65077972000000X,1488.36,,Yorkshire Water,Corporate Management and Support,59164,Equipment,Capital
13/12/2022,17261612,803.59,,Corona Energy,HUNSLET,25001,Energy-Gas,Revenue
13/12/2022,17261618,718.24,,Corona Energy,RAWDON,25001,Energy-Gas,Revenue
13/12/2022,17261651,704.53,,Corona Energy,Service Delivery Centre,25001,Energy-Gas,Revenue
13/12/2022,17261655,1012.2,,Corona Energy,BRADFORD,25001,Energy-Gas,Revenue
13/12/2022,17261653,651.63,,Corona Energy,STANNINGLEY,25001,Energy-Gas,Revenue
13/12/2022,17261675,1970.57,,Corona Energy,PROPERTY,25001,Energy-Gas,Revenue
13/12/2022,490719,810,,OfficeXpress Europe Limited,Various,43106,ICT Consumables,Revenue
14/12/2022,SI1584669,537,,H C Slingsby Plc,West Yorkshire Fire and Rescue Service,41500,Clothing,Revenue
14/12/2022,42129,1200,,Hall Lane Recyclers Ltd,RECRUITS,40025,Scrap Cars Purch,Revenue
14/12/2022,AFO1190103,4705,,Veolia (Dewsbury),SUPPLIES SECTION,28506,Refuse Collect/Disp,Revenue
14/12/2022,91294121,696.18,,Whittan Industrial Ltd (t/a Link 51,Shipley,40100,Furniture,Revenue
14/12/2022,IN88172,20913.36,,BAM FM Ltd (Manchester),PROPERTY,20000,Ann Contract/Service,Revenue
14/12/2022,IN88170,20913.36,,BAM FM Ltd (Manchester),PROPERTY,20000,Ann Contract/Service,Revenue
14/12/2022,IRIN790772,6800.52,636.81,Lex Autolease Ltd,FLEET MANAGEMENT,34001,Vehicle Leasing,Revenue
14/12/2022,8607649659,525,,Kirklees Council,EMPLOYMENT SERVICES,18100,Staff Advertising,Revenue
14/12/2022,SI002613,567.08,,Hunter Apparel Solutions Ltd,SUPPLIES SECTION,41500,Clothing,Revenue
15/12/2022,I0025011,1235,,Merseyside Fire & Rescue Authority,TRAINING DELIVERY,19238,Ops Res Tng,Revenue
15/12/2022,2021-79-5,661.84,,Daniels Catering,West Yorkshire Fire and Rescue Service,40502,Food,Revenue
15/12/2022,2910299603,3909.85,,Draeger Ltd,OPERATIONS EQUIPMENT,40005,Operational Equ Pch,Revenue
15/12/2022,INV/11350,1510.36,,Industrial Door Solutions Limited,ILKLEY,21006,Appliance Bay Doors,Revenue
15/12/2022,56519,4356,,Physio Med Ltd,Health & Safety,18301,Specialists Fees,Revenue
16/12/2022,688594,1114.04,,Wavenet Limited,Information Technlgy,43015,Landlines Call Charges,Revenue
19/12/2022,1589977-01,897.1,,Crossroads Truck & Bus Ltd,FLEET MAINTENANCE,30001,Dir Cost-Spare Parts,Revenue
19/12/2022,22038,1320,,West Yorkshire Windscreens Ltd,FLEET MAINTENANCE,30001,Dir Cost-Spare Parts,Revenue
19/12/2022,1590150-01,2353.92,,Crossroads Truck & Bus Ltd,FLEET MAINTENANCE,30001,Dir Cost-Spare Parts,Revenue
19/12/2022,MIN0233225,675,,Truck Parts (North Wales),FLEET MAINTENANCE,30001,Dir Cost-Spare Parts,Revenue
19/12/2022,650780140000000,1488.36,,Yorkshire Water,Corporate Management and Support,59164,Equipment,Capital
19/12/2022,650780150000009,756.63,,Yorkshire Water,Corporate Management and Support,59164,Equipment,Capital
19/12/2022,650780160000007,645.78,,Yorkshire Water,Corporate Management and Support,59164,Equipment,Capital
19/12/2022,650780170000005,971.12,,Yorkshire Water,Corporate Management and Support,59164,Equipment,Capital
19/12/2022,650780180000003,645.78,,Yorkshire Water,Corporate Management and Support,59164,Equipment,Capital
19/12/2022,650780190000001,1540.08,,Yorkshire Water,Corporate Management and Support,59164,Equipment,Capital
19/12/2022,650781570000000,1488.36,,Yorkshire Water,Corporate Management and Support,59164,Equipment,Capital
19/12/2022,650781580000009,1488.36,,Yorkshire Water,Corporate Management and Support,59164,Equipment,Capital
19/12/2022,1589409-01,903.78,,Crossroads Truck & Bus Ltd,FLEET MAINTENANCE,30001,Dir Cost-Spare Parts,Revenue
19/12/2022,E2016309991,10681.67,,Allstar Business Solutions Ltd,Various,Various,Various,Revenue
19/12/2022,33534,963.75,,Shape Design Contracts Limited,CONTROL,40003,Admin/Office Equ Pch,Revenue
19/12/2022,441851-034MA,4272.72,,Virgin Media Payments Ltd,Information Technlgy,43017,Corporate Mobile Phone,Revenue
19/12/2022,0000004833,8925,,AppCheck Limited,Information Technlgy,43103,ICT Maintenance & Support,Revenue
19/12/2022,38003493,925655.33,,Willmott Dixon Construction Limited,Various,Various,Various,Revenue
20/12/2022,23-R1568,633.08,,Weber Rescue Uk Ltd,OPERATIONS EQUIPMENT,40005,Operational Equ Pch,Revenue
20/12/2022,8077849,3672.3,,Certas Energy UK Ltd t/a Bayford Oi,Dewsbury,30200,Vehicle Fuel,Revenue
20/12/2022,8080257,4896.4,,Certas Energy UK Ltd t/a Bayford Oi,Killingbeck,30200,Vehicle Fuel,Revenue
20/12/2022,835298714,778.28,,Leeds City Council,Wetherby Day Crewing,26000,Rates & Council Tax,Revenue
20/12/2022,MIN0233001,548.8,,Truck Parts (North Wales),FLEET MAINTENANCE,30001,Dir Cost-Spare Parts,Revenue
20/12/2022,MIN0233002,1171,,Truck Parts (North Wales),FLEET MAINTENANCE,30001,Dir Cost-Spare Parts,Revenue
20/12/2022,7131/06808835,1364.7,,Brammer Buck & Hickman (Head Office,FLEET MAINTENANCE,30002,Consumables-Veh Rep,Revenue
20/12/2022,650782490000006,1553.36,,Yorkshire Water,Corporate Management and Support,59164,Equipment,Capital
20/12/2022,65078250000000X,1553.36,,Yorkshire Water,Corporate Management and Support,59164,Equipment,Capital
20/12/2022,650782510000008,1488.36,,Yorkshire Water,Corporate Management and Support,59164,Equipment,Capital
20/12/2022,650782520000006,710.78,,Yorkshire Water,Corporate Management and Support,59164,Equipment,Capital
20/12/2022,650782540000002,1488.36,,Yorkshire Water,Corporate Management and Support,59164,Equipment,Capital
20/12/2022,117388843,1650.3,,M I Supplies Ltd,SUPPLIES SECTION,41500,Clothing,Revenue
20/12/2022,034037,738.62,,BCS Electrics Ltd,Skelmanthorpe,21012,Heating & Mechanical,Revenue
20/12/2022,034041,2645.89,,BCS Electrics Ltd,Service Delivery Centre,21013,Electrical Reps (Fr),Revenue
20/12/2022,001,7527,,Stewart Warman,Slaithwaite,10401,Retained - Basic Pay,Revenue
20/12/2022,034040,3227.21,,BCS Electrics Ltd,Corporate Management and Support,59052,Cont-External,Capital
20/12/2022,INV-2548,2676.97,,Robert Whetham Associates,PROPERTY,20002,Contract Management,Revenue
21/12/2022,650782530000004,710.78,,Yorkshire Water,Corporate Management and Support,59164,Equipment,Capital
21/12/2022,650782550000000,1475.08,,Yorkshire Water,Corporate Management and Support,59164,Equipment,Capital
21/12/2022,7886038,5931.6,,Certas Energy UK Ltd t/a Bayford Oi,LEEDS,30200,Vehicle Fuel,Revenue
21/12/2022,SI033844,639.86,,Totalkare Heavy Duty Workshop Solut,FLEET MAINTENANCE,30005,Workshop Equipment,Revenue
21/12/2022,AR2022005191,1383.14,,Banner Batteries (GB) Ltd,FLEET MAINTENANCE,30001,Dir Cost-Spare Parts,Revenue
21/12/2022,2046712-06,1577.4,,Crossroads Truck & Bus Ltd,FLEET MANAGEMENT,30004,Rep-Ext Contractors,Revenue
21/12/2022,CD20221027991,599.78,,Survitec Service & Distribution Ltd,OPERATIONS EQUIPMENT,40005,Operational Equ Pch,Revenue
21/12/2022,034055,4495.45,,BCS Electrics Ltd,PROPERTY,20000,Ann Contract/Service,Revenue
21/12/2022,110288,2345,,Lavat Consulting Ltd,FINANCE SECTION,44600,Subscriptions,Revenue
21/12/2022,SI-2289,4425,,Cafe Perfection Ltd,PROPERTY,20000,Ann Contract/Service,Revenue
21/12/2022,8048795,2049.3,,Certas Energy UK Ltd t/a Bayford Oi,HUDDERSFIELD,25002,Energy-Fuel Oil,Revenue
21/12/2022,2021-79-6,750.78,,Daniels Catering,West Yorkshire Fire and Rescue Service,40502,Food,Revenue
21/12/2022,52272,2316,,Physio Med Ltd,Health & Safety,18301,Specialists Fees,Revenue
21/12/2022,INV-2223239,500,,Pepperdog Design Ltd,Fire Safety Prev,Various,Various,Revenue
21/12/2022,8057622,23294.67,,Angus Fire Ltd,Corporate Management and Support,59164,Equipment,Capital
21/12/2022,SI002612,692.26,,Hunter Apparel Solutions Ltd,SUPPLIES SECTION,41500,Clothing,Revenue
22/12/2022,2910297300,1199.7,,Draeger Ltd,SUPPLIES SECTION,28501,Cleaning Consumables,Revenue
22/12/2022,65696,2790,,Safequip Ltd,OPERATIONS EQUIPMENT,40005,Operational Equ Pch,Revenue
22/12/2022,117390394,938.76,,M I Supplies Ltd,SUPPLIES SECTION,41500,Clothing,Revenue
22/12/2022,2023170,950,,Frank Tucker Ltd,SILSDEN,21014,General Rep & Maint,Revenue
22/12/2022,65876,550.35,,Safequip Ltd,OPERATIONS EQUIPMENT,40005,Operational Equ Pch,Revenue
22/12/2022,SI017558,14000,,Simpson Associates Information Serv,Performance Management,42511,Consultancy Fees,Revenue
22/12/2022,17715,873.6,,Heavy Woollen Textile Co Ltd,SUPPLIES SECTION,Various,Various,Revenue
22/12/2022,52139/1,645,,Service Desk Institute,Information Technlgy,44600,Subscriptions,Revenue
22/12/2022,122,1265.66,,Clarks Technology Solutions Limited,FLEET MANAGEMENT,34002,Vhcle Leas Misc Exp,Revenue
22/12/2022,INV-7022,22700,,First Media Solutions Ltd,Performance Management,42511,Consultancy Fees,Revenue
22/12/2022,IN22151379,660,,Calderdale Met Borough Council,EMPLOYMENT SERVICES,18100,Staff Advertising,Revenue
22/12/2022,SI-2300,3960,,Cafe Perfection Ltd,PROPERTY,20000,Ann Contract/Service,Revenue
22/12/2022,034070,544.03,,BCS Electrics Ltd,FLEET MAINTENANCE,21013,Electrical Reps (Fr),Revenue
22/12/2022,034074,2858.93,,BCS Electrics Ltd,HUDDERSFIELD,21013,Electrical Reps (Fr),Revenue
23/12/2022,0000048129,1002.75,,Supply Plus,FLEET MAINTENANCE,30001,Dir Cost-Spare Parts,Revenue
23/12/2022,650784130000008,906.12,,Yorkshire Water,Corporate Management and Support,59164,Equipment,Capital
23/12/2022,650784140000006,1488.36,,Yorkshire Water,Corporate Management and Support,59164,Equipment,Capital
23/12/2022,650784150000004,710.78,,Yorkshire Water,Corporate Management and Support,59164,Equipment,Capital
23/12/2022,650784170000000,1488.36,,Yorkshire Water,Corporate Management and Support,59164,Equipment,Capital
23/12/2022,650784160000002,1488.36,,Yorkshire Water,Corporate Management and Support,59164,Equipment,Capital
23/12/2022,650784400000005,1488.36,,Yorkshire Water,Corporate Management and Support,59164,Equipment,Capital
23/12/2022,650784410000003,1488.36,,Yorkshire Water,Corporate Management and Support,59164,Equipment,Capital
23/12/2022,650784420000001,645.78,,Yorkshire Water,Corporate Management and Support,59164,Equipment,Capital
23/12/2022,65078443000000X,645.78,,Yorkshire Water,Corporate Management and Support,59164,Equipment,Capital
23/12/2022,650784440000008,645.78,,Yorkshire Water,Corporate Management and Support,59164,Equipment,Capital
23/12/2022,650784450000006,1553.36,,Yorkshire Water,Corporate Management and Support,59164,Equipment,Capital
23/12/2022,650784460000004,1035.45,,Yorkshire Water,Corporate Management and Support,59164,Equipment,Capital
23/12/2022,650784470000002,710.78,,Yorkshire Water,Corporate Management and Support,59164,Equipment,Capital
23/12/2022,650784480000000,906.12,,Yorkshire Water,Corporate Management and Support,59164,Equipment,Capital
23/12/2022,MIN4806937,4925.4,,Lex Autolease Ltd,FLEET MANAGEMENT,34001,Vehicle Leasing,Revenue
23/12/2022,EXI2036545,542.11,50.43,Lex Autolease Ltd,FLEET MANAGEMENT,34004,Vehicle Leasing,Revenue
23/12/2022,1001666-2022-11,5441.27,,Scottish Water Business Stream York,Various,26500,Water - Metered,Revenue
23/12/2022,491211,791,,OfficeXpress Europe Limited,SUPPLIES SECTION,43106,ICT Consumables,Revenue
23/12/2022,223824,666.67,,Darcy Products Limited,FAIRWEATHER GREEN,21014,General Rep & Maint,Revenue
23/12/2022,TK138770,5265.9,,Thomas Kneale & Co Ltd,Fire Safety Prev,40037,Safety Equipment,Revenue
23/12/2022,SS159,1662.4,,D Ellis Services,PROPERTY,24000,Grounds Maintenance,Revenue
23/12/2022,SS159A,856.2,,D Ellis Services,Service Delivery Centre,24000,Grounds Maintenance,Revenue
23/12/2022,SS159B,1652.4,,D Ellis Services,HALIFAX,24000,Grounds Maintenance,Revenue
28/12/2022,223035,5128,,Darcy Products Limited,ILLINGWORTH,21014,General Rep & Maint,Revenue
28/12/2022,223036,5128,,Darcy Products Limited,STANNINGLEY,21014,General Rep & Maint,Revenue
28/12/2022,223229,1040.56,,Darcy Products Limited,HUNSLET,21014,General Rep & Maint,Revenue
28/12/2022,223040,1635,,Darcy Products Limited,FAIRWEATHER GREEN,21014,General Rep & Maint,Revenue
28/12/2022,223615,740,,Darcy Products Limited,Holmfirth,21014,General Rep & Maint,Revenue
28/12/2022,85422,690,,Foulds Lifts Ltd,West Yorkshire Fire and Rescue Service,21014,General Rep & Maint,Revenue
28/12/2022,10915,695,,Ioda Limited,TRAINING DELIVERY,19235,Emp Svc Tng,Revenue
28/12/2022,INV-14725,3370.17,,Cell:cm Ltd (Head Office),PROPERTY,20002,Contract Management,Revenue
28/12/2022,1234,1800,,Evolve OD Ltd,TRAINING DELIVERY,19203,Non Uniformed,Revenue
28/12/2022,MJA02313,658.37,,MJA Consultants,OTLEY,21014,General Rep & Maint,Revenue
28/12/2022,546213,589,,Gresham Office Furniture,SUPPLIES SECTION,40003,Admin/Office Equ Pch,Revenue
28/12/2022,1185352,32300,,Fireangel Safety Technology Ltd,Corporate Management and Support,59164,Equipment,Capital
28/12/2022,201689,563.3,,Keela International Ltd,SUPPLIES SECTION,41500,Clothing,Revenue
29/12/2022,33263,804,,Emergency One (Uk) Ltd,FLEET MANAGEMENT,30004,Rep-Ext Contractors,Revenue
29/12/2022,83967,512.6,,Interflon (Uk) Ltd,FLEET MAINTENANCE,30002,Consumables-Veh Rep,Revenue
29/12/2022,532820,46095.46,,Churchill Contract Services Limited,PROPERTY,28502,Contract Cleaning,Revenue
29/12/2022,1143352,17072.32,,Ballyclare Limited,Corporate Management and Support,59164,Equipment,Capital
29/12/2022,1143353,23350.05,,Ballyclare Limited,Corporate Management and Support,59164,Equipment,Capital
29/12/2022,YFSI4041005,12057,,Police And Crime Commissioner WY,Police And Crime Commissioner WY,44500,Grants,Revenue
29/12/2022,546212,1545.75,,Gresham Office Furniture,SUPPLIES SECTION,40100,Furniture,Revenue
29/12/2022,546211,2164.05,,Gresham Office Furniture,SUPPLIES SECTION,40100,Furniture,Revenue
30/12/2022,650782460000001,1553.36,,Yorkshire Water,Corporate Management and Support,59164,Equipment,Capital
30/12/2022,65078247000000X,1540.08,,Yorkshire Water,Corporate Management and Support,59164,Equipment,Capital
30/12/2022,650788590000001,756.63,,Yorkshire Water,Corporate Management and Support,59164,Equipment,Capital
30/12/2022,UK10/122022/421,1604,,Vodafone Business Solutions,Emergency Serv. Comms. Programme - WY,43042,Direct Network Service Provider,Revenue
30/12/2022,864741,1004.41,,Wavenet Limited,Information Technlgy,43015,Landlines Call Charges,Revenue
30/12/2022,0940000048-121,3566.18,,Airwave Solutions Ltd,Information Technlgy,43026,Radio Licensing,Revenue
30/12/2022,1215,1562,,Smart Guard Security Ltd,PROPERTY,20000,Ann Contract/Service,Revenue
30/12/2022,1487,1562,,Smart Guard Security Ltd,PROPERTY,20000,Ann Contract/Service,Revenue
30/12/2022,1594,1562,,Smart Guard Security Ltd,PROPERTY,20000,Ann Contract/Service,Revenue
30/12/2022,YFSI4041009,5000,,Police And Crime Commissioner WY,COMMAND TRAINING,19201,Training Fees,Revenue
